Workbook

Sheet الرصيد الثابت
A1: اللون | B1: الوصف | C1: المقاس | D1: اللون | E1: رصيد اقتتاحي بالكيلو | F1: رصيد اقتتاحي بالمتر | G1: رصيد اقتتاحي بالقطع | H1: رصيد ختامي يالكيلو | I1: رصيد ختامي يالمتر | J1: رصيد ختامي يالقطع
A2: ابيض | B2: استك طبي | C2: 2.58 | D2: =A2&" "&B2&" "&C2 -> ابيض استك طبي 2.58 | H2: =IF(E2="","",SUMIF(الدخول!$B$3:$B$25,D2,الدخول!$F$3:$F$25)+SUMIF(الدخول!$B$3:$B$25,D2,الدخول!$S$3:$S$25)+E2-SUMIF(الدخول!$B$3:$B$25,D2,الدخول!$L$3:$L$25)) ->  | I2: =IF(F2="","",SUMIF(الدخول!$B$3:$B$25,D2,الدخول!$H$3:$H$25)+SUMIF(الدخول!$B$3:$B$25,D2,الدخول!$U$3:$U$25)+F2-SUMIF(الدخول!$B$3:$B$25,D2,الدخول!$N$3:$N$25)) ->  | J2: =IF(G2="","",SUMIF(الدخول!$B$3:$B$25,D2,الدخول!$I$3:$I$25)+SUMIF(الدخول!$B$3:$B$25,D2,الدخول!$V$3:$V$25)+G2-SUMIF(الدخول!$B$3:$B$25,D2,الدخول!$O$3:$O$25)) ->  | M2: اسود | N2: =MATCH(M2,D:D,0) -> 
A3: ابيض | B3: استك طبي | C3: 2.78 | D3: ابيض استك طبي 2.78 | H3: =IF(E3="","",SUMIF(الدخول!$B$3:$B$25,D3,الدخول!$F$3:$F$25)+SUMIF(الدخول!$B$3:$B$25,D3,الدخول!$S$3:$S$25)+E3-SUMIF(الدخول!$B$3:$B$25,D3,الدخول!$L$3:$L$25)) ->  | I3: =IF(F3="","",SUMIF(الدخول!$B$3:$B$25,D3,الدخول!$H$3:$H$25)+SUMIF(الدخول!$B$3:$B$25,D3,الدخول!$U$3:$U$25)+F3-SUMIF(الدخول!$B$3:$B$25,D3,الدخول!$N$3:$N$25)) ->  | J3: =IF(G3="","",SUMIF(الدخول!$B$3:$B$25,D3,الدخول!$I$3:$I$25)+SUMIF(الدخول!$B$3:$B$25,D3,الدخول!$V$3:$V$25)+G3-SUMIF(الدخول!$B$3:$B$25,D3,الدخول!$O$3:$O$25)) -> 
A4: ابيض | B4: استك طبي | C4: 3.02 | D4: ابيض استك طبي 3.02 | H4: =IF(E4="","",SUMIF(الدخول!$B$3:$B$25,D4,الدخول!$F$3:$F$25)+SUMIF(الدخول!$B$3:$B$25,D4,الدخول!$S$3:$S$25)+E4-SUMIF(الدخول!$B$3:$B$25,D4,الدخول!$L$3:$L$25)) ->  | I4: =IF(F4="","",SUMIF(الدخول!$B$3:$B$25,D4,الدخول!$H$3:$H$25)+SUMIF(الدخول!$B$3:$B$25,D4,الدخول!$U$3:$U$25)+F4-SUMIF(الدخول!$B$3:$B$25,D4,الدخول!$N$3:$N$25)) ->  | J4: =IF(G4="","",SUMIF(الدخول!$B$3:$B$25,D4,الدخول!$I$3:$I$25)+SUMIF(الدخول!$B$3:$B$25,D4,الدخول!$V$3:$V$25)+G4-SUMIF(الدخول!$B$3:$B$25,D4,الدخول!$O$3:$O$25)) -> 
A5: ابيض | B5: استك طبي | C5: 3.18 | D5: ابيض استك طبي 3.18 | H5: =IF(E5="","",SUMIF(الدخول!$B$3:$B$25,D5,الدخول!$F$3:$F$25)+SUMIF(الدخول!$B$3:$B$25,D5,الدخول!$S$3:$S$25)+E5-SUMIF(الدخول!$B$3:$B$25,D5,الدخول!$L$3:$L$25)) ->  | I5: =IF(F5="","",SUMIF(الدخول!$B$3:$B$25,D5,الدخول!$H$3:$H$25)+SUMIF(الدخول!$B$3:$B$25,D5,الدخول!$U$3:$U$25)+F5-SUMIF(الدخول!$B$3:$B$25,D5,الدخول!$N$3:$N$25)) ->  | J5: =IF(G5="","",SUMIF(الدخول!$B$3:$B$25,D5,الدخول!$I$3:$I$25)+SUMIF(الدخول!$B$3:$B$25,D5,الدخول!$V$3:$V$25)+G5-SUMIF(الدخول!$B$3:$B$25,D5,الدخول!$O$3:$O$25)) -> 
A6: ابيض | B6: استك طبي | C6: 3.3 | D6: ابيض استك طبي 3.3 | H6: =IF(E6="","",SUMIF(الدخول!$B$3:$B$25,D6,الدخول!$F$3:$F$25)+SUMIF(الدخول!$B$3:$B$25,D6,الدخول!$S$3:$S$25)+E6-SUMIF(الدخول!$B$3:$B$25,D6,الدخول!$L$3:$L$25)) ->  | I6: =IF(F6="","",SUMIF(الدخول!$B$3:$B$25,D6,الدخول!$H$3:$H$25)+SUMIF(الدخول!$B$3:$B$25,D6,الدخول!$U$3:$U$25)+F6-SUMIF(الدخول!$B$3:$B$25,D6,الدخول!$N$3:$N$25)) ->  | J6: =IF(G6="","",SUMIF(الدخول!$B$3:$B$25,D6,الدخول!$I$3:$I$25)+SUMIF(الدخول!$B$3:$B$25,D6,الدخول!$V$3:$V$25)+G6-SUMIF(الدخول!$B$3:$B$25,D6,الدخول!$O$3:$O$25)) -> 
A7: ابيض | B7: استك طبي | C7: 3.36 | D7: ابيض استك طبي 3.36 | H7: =IF(E7="","",SUMIF(الدخول!$B$3:$B$25,D7,الدخول!$F$3:$F$25)+SUMIF(الدخول!$B$3:$B$25,D7,الدخول!$S$3:$S$25)+E7-SUMIF(الدخول!$B$3:$B$25,D7,الدخول!$L$3:$L$25)) ->  | I7: =IF(F7="","",SUMIF(الدخول!$B$3:$B$25,D7,الدخول!$H$3:$H$25)+SUMIF(الدخول!$B$3:$B$25,D7,الدخول!$U$3:$U$25)+F7-SUMIF(الدخول!$B$3:$B$25,D7,الدخول!$N$3:$N$25)) ->  | J7: =IF(G7="","",SUMIF(الدخول!$B$3:$B$25,D7,الدخول!$I$3:$I$25)+SUMIF(الدخول!$B$3:$B$25,D7,الدخول!$V$3:$V$25)+G7-SUMIF(الدخول!$B$3:$B$25,D7,الدخول!$O$3:$O$25)) -> 
A8: ابيض | B8: استك طبي | C8: 3.5 | D8: ابيض استك طبي 3.5 | H8: =IF(E8="","",SUMIF(الدخول!$B$3:$B$25,D8,الدخول!$F$3:$F$25)+SUMIF(الدخول!$B$3:$B$25,D8,الدخول!$S$3:$S$25)+E8-SUMIF(الدخول!$B$3:$B$25,D8,الدخول!$L$3:$L$25)) ->  | I8: =IF(F8="","",SUMIF(الدخول!$B$3:$B$25,D8,الدخول!$H$3:$H$25)+SUMIF(الدخول!$B$3:$B$25,D8,الدخول!$U$3:$U$25)+F8-SUMIF(الدخول!$B$3:$B$25,D8,الدخول!$N$3:$N$25)) ->  | J8: =IF(G8="","",SUMIF(الدخول!$B$3:$B$25,D8,الدخول!$I$3:$I$25)+SUMIF(الدخول!$B$3:$B$25,D8,الدخول!$V$3:$V$25)+G8-SUMIF(الدخول!$B$3:$B$25,D8,الدخول!$O$3:$O$25)) -> 
A9: ابيض | B9: استك طبي | C9: 4.14 | D9: ابيض استك طبي 4.14 | H9: =IF(E9="","",SUMIF(الدخول!$B$3:$B$25,D9,الدخول!$F$3:$F$25)+SUMIF(الدخول!$B$3:$B$25,D9,الدخول!$S$3:$S$25)+E9-SUMIF(الدخول!$B$3:$B$25,D9,الدخول!$L$3:$L$25)) ->  | I9: =IF(F9="","",SUMIF(الدخول!$B$3:$B$25,D9,الدخول!$H$3:$H$25)+SUMIF(الدخول!$B$3:$B$25,D9,الدخول!$U$3:$U$25)+F9-SUMIF(الدخول!$B$3:$B$25,D9,الدخول!$N$3:$N$25)) ->  | J9: =IF(G9="","",SUMIF(الدخول!$B$3:$B$25,D9,الدخول!$I$3:$I$25)+SUMIF(الدخول!$B$3:$B$25,D9,الدخول!$V$3:$V$25)+G9-SUMIF(الدخول!$B$3:$B$25,D9,الدخول!$O$3:$O$25)) -> 
A10: ابيض | B10: استك طبي | C10: 4.92 | D10: ابيض استك طبي 4.92 | H10: =IF(E10="","",SUMIF(الدخول!$B$3:$B$25,D10,الدخول!$F$3:$F$25)+SUMIF(الدخول!$B$3:$B$25,D10,الدخول!$S$3:$S$25)+E10-SUMIF(الدخول!$B$3:$B$25,D10,الدخول!$L$3:$L$25)) ->  | I10: =IF(F10="","",SUMIF(الدخول!$B$3:$B$25,D10,الدخول!$H$3:$H$25)+SUMIF(الدخول!$B$3:$B$25,D10,الدخول!$U$3:$U$25)+F10-SUMIF(الدخول!$B$3:$B$25,D10,الدخول!$N$3:$N$25)) ->  | J10: =IF(G10="","",SUMIF(الدخول!$B$3:$B$25,D10,الدخول!$I$3:$I$25)+SUMIF(الدخول!$B$3:$B$25,D10,الدخول!$V$3:$V$25)+G10-SUMIF(الدخول!$B$3:$B$25,D10,الدخول!$O$3:$O$25)) -> 
A11: ابيض | B11: استك طبي | C11: 7.52 | D11: ابيض استك طبي 7.52 | H11: =IF(E11="","",SUMIF(الدخول!$B$3:$B$25,D11,الدخول!$F$3:$F$25)+SUMIF(الدخول!$B$3:$B$25,D11,الدخول!$S$3:$S$25)+E11-SUMIF(الدخول!$B$3:$B$25,D11,الدخول!$L$3:$L$25)) ->  | I11: =IF(F11="","",SUMIF(الدخول!$B$3:$B$25,D11,الدخول!$H$3:$H$25)+SUMIF(الدخول!$B$3:$B$25,D11,الدخول!$U$3:$U$25)+F11-SUMIF(الدخول!$B$3:$B$25,D11,الدخول!$N$3:$N$25)) ->  | J11: =IF(G11="","",SUMIF(الدخول!$B$3:$B$25,D11,الدخول!$I$3:$I$25)+SUMIF(الدخول!$B$3:$B$25,D11,الدخول!$V$3:$V$25)+G11-SUMIF(الدخول!$B$3:$B$25,D11,الدخول!$O$3:$O$25)) -> 
A12: ابيض | B12: كروشيه | C12: 1.2cm | D12: ابيض كروشيه 1.2cm | E12: 7.64 | F12: 686 | H12: =IF(E12="","",SUMIF(الدخول!$B$3:$B$25,D12,الدخول!$F$3:$F$25)+SUMIF(الدخول!$B$3:$B$25,D12,الدخول!$S$3:$S$25)+E12-SUMIF(الدخول!$B$3:$B$25,D12,الدخول!$L$3:$L$25)) -> 5.64 | I12: =IF(F12="","",SUMIF(الدخول!$B$3:$B$25,D12,الدخول!$H$3:$H$25)+SUMIF(الدخول!$B$3:$B$25,D12,الدخول!$U$3:$U$25)+F12-SUMIF(الدخول!$B$3:$B$25,D12,الدخول!$N$3:$N$25)) -> 684 | J12: =IF(G12="","",SUMIF(الدخول!$B$3:$B$25,D12,الدخول!$I$3:$I$25)+SUMIF(الدخول!$B$3:$B$25,D12,الدخول!$V$3:$V$25)+G12-SUMIF(الدخول!$B$3:$B$25,D12,الدخول!$O$3:$O$25)) -> 
A13: ابيض | B13: كروشيه | C13: 1.3cm | D13: ابيض كروشيه 1.3cm | H13: =IF(E13="","",SUMIF(الدخول!$B$3:$B$25,D13,الدخول!$F$3:$F$25)+SUMIF(الدخول!$B$3:$B$25,D13,الدخول!$S$3:$S$25)+E13-SUMIF(الدخول!$B$3:$B$25,D13,الدخول!$L$3:$L$25)) ->  | I13: =IF(F13="","",SUMIF(الدخول!$B$3:$B$25,D13,الدخول!$H$3:$H$25)+SUMIF(الدخول!$B$3:$B$25,D13,الدخول!$U$3:$U$25)+F13-SUMIF(الدخول!$B$3:$B$25,D13,الدخول!$N$3:$N$25)) ->  | J13: =IF(G13="","",SUMIF(الدخول!$B$3:$B$25,D13,الدخول!$I$3:$I$25)+SUMIF(الدخول!$B$3:$B$25,D13,الدخول!$V$3:$V$25)+G13-SUMIF(الدخول!$B$3:$B$25,D13,الدخول!$O$3:$O$25)) -> 
A14: ابيض | B14: كروشيه | C14: 1.5cm | D14: ابيض كروشيه 1.5cm | E14: 7.64 | F14: 1488 | H14: =IF(E14="","",SUMIF(الدخول!$B$3:$B$25,D14,الدخول!$F$3:$F$25)+SUMIF(الدخول!$B$3:$B$25,D14,الدخول!$S$3:$S$25)+E14-SUMIF(الدخول!$B$3:$B$25,D14,الدخول!$L$3:$L$25)) -> 7.64 | I14: =IF(F14="","",SUMIF(الدخول!$B$3:$B$25,D14,الدخول!$H$3:$H$25)+SUMIF(الدخول!$B$3:$B$25,D14,الدخول!$U$3:$U$25)+F14-SUMIF(الدخول!$B$3:$B$25,D14,الدخول!$N$3:$N$25)) -> 1488 | J14: =IF(G14="","",SUMIF(الدخول!$B$3:$B$25,D14,الدخول!$I$3:$I$25)+SUMIF(الدخول!$B$3:$B$25,D14,الدخول!$V$3:$V$25)+G14-SUMIF(الدخول!$B$3:$B$25,D14,الدخول!$O$3:$O$25)) -> 
A15: ابيض | B15: كروشيه | C15: 1.6cm | D15: ابيض كروشيه 1.6cm | H15: =IF(E15="","",SUMIF(الدخول!$B$3:$B$25,D15,الدخول!$F$3:$F$25)+SUMIF(الدخول!$B$3:$B$25,D15,الدخول!$S$3:$S$25)+E15-SUMIF(الدخول!$B$3:$B$25,D15,الدخول!$L$3:$L$25)) ->  | I15: =IF(F15="","",SUMIF(الدخول!$B$3:$B$25,D15,الدخول!$H$3:$H$25)+SUMIF(الدخول!$B$3:$B$25,D15,الدخول!$U$3:$U$25)+F15-SUMIF(الدخول!$B$3:$B$25,D15,الدخول!$N$3:$N$25)) ->  | J15: =IF(G15="","",SUMIF(الدخول!$B$3:$B$25,D15,الدخول!$I$3:$I$25)+SUMIF(الدخول!$B$3:$B$25,D15,الدخول!$V$3:$V$25)+G15-SUMIF(الدخول!$B$3:$B$25,D15,الدخول!$O$3:$O$25)) -> 
A16: ابيض | B16: كروشيه | C16: 1.8cm | D16: ابيض كروشيه 1.8cm | H16: =IF(E16="","",SUMIF(الدخول!$B$3:$B$25,D16,الدخول!$F$3:$F$25)+SUMIF(الدخول!$B$3:$B$25,D16,الدخول!$S$3:$S$25)+E16-SUMIF(الدخول!$B$3:$B$25,D16,الدخول!$L$3:$L$25)) ->  | I16: =IF(F16="","",SUMIF(الدخول!$B$3:$B$25,D16,الدخول!$H$3:$H$25)+SUMIF(الدخول!$B$3:$B$25,D16,الدخول!$U$3:$U$25)+F16-SUMIF(الدخول!$B$3:$B$25,D16,الدخول!$N$3:$N$25)) ->  | J16: =IF(G16="","",SUMIF(الدخول!$B$3:$B$25,D16,الدخول!$I$3:$I$25)+SUMIF(الدخول!$B$3:$B$25,D16,الدخول!$V$3:$V$25)+G16-SUMIF(الدخول!$B$3:$B$25,D16,الدخول!$O$3:$O$25)) -> 
A17: ابيض | B17: كروشيه | C17: 1cm | D17: ابيض كروشيه 1cm | E17: 7.64 | F17: 653 | H17: =IF(E17="","",SUMIF(الدخول!$B$3:$B$25,D17,الدخول!$F$3:$F$25)+SUMIF(الدخول!$B$3:$B$25,D17,الدخول!$S$3:$S$25)+E17-SUMIF(الدخول!$B$3:$B$25,D17,الدخول!$L$3:$L$25)) -> 7.64 | I17: =IF(F17="","",SUMIF(الدخول!$B$3:$B$25,D17,الدخول!$H$3:$H$25)+SUMIF(الدخول!$B$3:$B$25,D17,الدخول!$U$3:$U$25)+F17-SUMIF(الدخول!$B$3:$B$25,D17,الدخول!$N$3:$N$25)) -> 653 | J17: =IF(G17="","",SUMIF(الدخول!$B$3:$B$25,D17,الدخول!$I$3:$I$25)+SUMIF(الدخول!$B$3:$B$25,D17,الدخول!$V$3:$V$25)+G17-SUMIF(الدخول!$B$3:$B$25,D17,الدخول!$O$3:$O$25)) -> 
A18: ابيض | B18: كروشيه | C18: 2.2cm | D18: ابيض كروشيه 2.2cm | E18: 168.08 | F18: 14608 | H18: =IF(E18="","",SUMIF(الدخول!$B$3:$B$25,D18,الدخول!$F$3:$F$25)+SUMIF(الدخول!$B$3:$B$25,D18,الدخول!$S$3:$S$25)+E18-SUMIF(الدخول!$B$3:$B$25,D18,الدخول!$L$3:$L$25)) -> 168.08 | I18: =IF(F18="","",SUMIF(الدخول!$B$3:$B$25,D18,الدخول!$H$3:$H$25)+SUMIF(الدخول!$B$3:$B$25,D18,الدخول!$U$3:$U$25)+F18-SUMIF(الدخول!$B$3:$B$25,D18,الدخول!$N$3:$N$25)) -> 14608 | J18: =IF(G18="","",SUMIF(الدخول!$B$3:$B$25,D18,الدخول!$I$3:$I$25)+SUMIF(الدخول!$B$3:$B$25,D18,الدخول!$V$3:$V$25)+G18-SUMIF(الدخول!$B$3:$B$25,D18,الدخول!$O$3:$O$25)) -> 
A19: ابيض | B19: كروشيه | C19: 2.5cm | D19: ابيض كروشيه 2.5cm | E19: 55.32 | F19: 4128 | H19: =IF(E19="","",SUMIF(الدخول!$B$3:$B$25,D19,الدخول!$F$3:$F$25)+SUMIF(الدخول!$B$3:$B$25,D19,الدخول!$S$3:$S$25)+E19-SUMIF(الدخول!$B$3:$B$25,D19,الدخول!$L$3:$L$25)) -> 55.32 | I19: =IF(F19="","",SUMIF(الدخول!$B$3:$B$25,D19,الدخول!$H$3:$H$25)+SUMIF(الدخول!$B$3:$B$25,D19,الدخول!$U$3:$U$25)+F19-SUMIF(الدخول!$B$3:$B$25,D19,الدخول!$N$3:$N$25)) -> 4128 | J19: =IF(G19="","",SUMIF(الدخول!$B$3:$B$25,D19,الدخول!$I$3:$I$25)+SUMIF(الدخول!$B$3:$B$25,D19,الدخول!$V$3:$V$25)+G19-SUMIF(الدخول!$B$3:$B$25,D19,الدخول!$O$3:$O$25)) -> 
A20: ابيض | B20: كروشيه | C20: 2cm | D20: ابيض كروشيه 2cm | E20: 1260.6 | F20: 118390 | H20: =IF(E20="","",SUMIF(الدخول!$B$3:$B$25,D20,الدخول!$F$3:$F$25)+SUMIF(الدخول!$B$3:$B$25,D20,الدخول!$S$3:$S$25)+E20-SUMIF(الدخول!$B$3:$B$25,D20,الدخول!$L$3:$L$25)) -> 1260.6 | I20: =IF(F20="","",SUMIF(الدخول!$B$3:$B$25,D20,الدخول!$H$3:$H$25)+SUMIF(الدخول!$B$3:$B$25,D20,الدخول!$U$3:$U$25)+F20-SUMIF(الدخول!$B$3:$B$25,D20,الدخول!$N$3:$N$25)) -> 118390 | J20: =IF(G20="","",SUMIF(الدخول!$B$3:$B$25,D20,الدخول!$I$3:$I$25)+SUMIF(الدخول!$B$3:$B$25,D20,الدخول!$V$3:$V$25)+G20-SUMIF(الدخول!$B$3:$B$25,D20,الدخول!$O$3:$O$25)) -> 
A21: ابيض | B21: كروشيه | C21: 2m | D21: ابيض كروشيه 2m | H21: =IF(E21="","",SUMIF(الدخول!$B$3:$B$25,D21,الدخول!$F$3:$F$25)+SUMIF(الدخول!$B$3:$B$25,D21,الدخول!$S$3:$S$25)+E21-SUMIF(الدخول!$B$3:$B$25,D21,الدخول!$L$3:$L$25)) ->  | I21: =IF(F21="","",SUMIF(الدخول!$B$3:$B$25,D21,الدخول!$H$3:$H$25)+SUMIF(الدخول!$B$3:$B$25,D21,الدخول!$U$3:$U$25)+F21-SUMIF(الدخول!$B$3:$B$25,D21,الدخول!$N$3:$N$25)) ->  | J21: =IF(G21="","",SUMIF(الدخول!$B$3:$B$25,D21,الدخول!$I$3:$I$25)+SUMIF(الدخول!$B$3:$B$25,D21,الدخول!$V$3:$V$25)+G21-SUMIF(الدخول!$B$3:$B$25,D21,الدخول!$O$3:$O$25)) -> 
A22: ابيض | B22: كروشيه | C22: 3.2cm | D22: ابيض كروشيه 3.2cm | E22: 18.44 | F22: 1096 | H22: =IF(E22="","",SUMIF(الدخول!$B$3:$B$25,D22,الدخول!$F$3:$F$25)+SUMIF(الدخول!$B$3:$B$25,D22,الدخول!$S$3:$S$25)+E22-SUMIF(الدخول!$B$3:$B$25,D22,الدخول!$L$3:$L$25)) -> 18.44 | I22: =IF(F22="","",SUMIF(الدخول!$B$3:$B$25,D22,الدخول!$H$3:$H$25)+SUMIF(الدخول!$B$3:$B$25,D22,الدخول!$U$3:$U$25)+F22-SUMIF(الدخول!$B$3:$B$25,D22,الدخول!$N$3:$N$25)) -> 1096 | J22: =IF(G22="","",SUMIF(الدخول!$B$3:$B$25,D22,الدخول!$I$3:$I$25)+SUMIF(الدخول!$B$3:$B$25,D22,الدخول!$V$3:$V$25)+G22-SUMIF(الدخول!$B$3:$B$25,D22,الدخول!$O$3:$O$25)) -> 
A23: ابيض | B23: كروشيه | C23: 3.5cm | D23: ابيض كروشيه 3.5cm | E23: 5670.3 | F23: 298275 | H23: =IF(E23="","",SUMIF(الدخول!$B$3:$B$25,D23,الدخول!$F$3:$F$25)+SUMIF(الدخول!$B$3:$B$25,D23,الدخول!$S$3:$S$25)+E23-SUMIF(الدخول!$B$3:$B$25,D23,الدخول!$L$3:$L$25)) -> 5665.3 | I23: =IF(F23="","",SUMIF(الدخول!$B$3:$B$25,D23,الدخول!$H$3:$H$25)+SUMIF(الدخول!$B$3:$B$25,D23,الدخول!$U$3:$U$25)+F23-SUMIF(الدخول!$B$3:$B$25,D23,الدخول!$N$3:$N$25)) -> 298273 | J23: =IF(G23="","",SUMIF(الدخول!$B$3:$B$25,D23,الدخول!$I$3:$I$25)+SUMIF(الدخول!$B$3:$B$25,D23,الدخول!$V$3:$V$25)+G23-SUMIF(الدخول!$B$3:$B$25,D23,الدخول!$O$3:$O$25)) -> 
A24: ابيض | B24: كروشيه | C24: 3cm | D24: ابيض كروشيه 3cm | E24: 40010.7 | F24: 242730 | H24: =IF(E24="","",SUMIF(الدخول!$B$3:$B$25,D24,الدخول!$F$3:$F$25)+SUMIF(الدخول!$B$3:$B$25,D24,الدخول!$S$3:$S$25)+E24-SUMIF(الدخول!$B$3:$B$25,D24,الدخول!$L$3:$L$25)) -> 40003.7 | I24: =IF(F24="","",SUMIF(الدخول!$B$3:$B$25,D24,الدخول!$H$3:$H$25)+SUMIF(الدخول!$B$3:$B$25,D24,الدخول!$U$3:$U$25)+F24-SUMIF(الدخول!$B$3:$B$25,D24,الدخول!$N$3:$N$25)) -> 242728 | J24: =IF(G24="","",SUMIF(الدخول!$B$3:$B$25,D24,الدخول!$I$3:$I$25)+SUMIF(الدخول!$B$3:$B$25,D24,الدخول!$V$3:$V$25)+G24-SUMIF(الدخول!$B$3:$B$25,D24,الدخول!$O$3:$O$25)) -> 
A25: ابيض | B25: كروشيه | C25: 4.5cm | D25: ابيض كروشيه 4.5cm | E25: 497.88 | F25: 22626 | H25: =IF(E25="","",SUMIF(الدخول!$B$3:$B$25,D25,الدخول!$F$3:$F$25)+SUMIF(الدخول!$B$3:$B$25,D25,الدخول!$S$3:$S$25)+E25-SUMIF(الدخول!$B$3:$B$25,D25,الدخول!$L$3:$L$25)) -> 497.88 | I25: =IF(F25="","",SUMIF(الدخول!$B$3:$B$25,D25,الدخول!$H$3:$H$25)+SUMIF(الدخول!$B$3:$B$25,D25,الدخول!$U$3:$U$25)+F25-SUMIF(الدخول!$B$3:$B$25,D25,الدخول!$N$3:$N$25)) -> 22626 | J25: =IF(G25="","",SUMIF(الدخول!$B$3:$B$25,D25,الدخول!$I$3:$I$25)+SUMIF(الدخول!$B$3:$B$25,D25,الدخول!$V$3:$V$25)+G25-SUMIF(الدخول!$B$3:$B$25,D25,الدخول!$O$3:$O$25)) -> 
A26: ابيض | B26: كروشيه | C26: 4cm | D26: ابيض كروشيه 4cm | E26: 3900.06 | F26: 170892 | H26: =IF(E26="","",SUMIF(الدخول!$B$3:$B$25,D26,الدخول!$F$3:$F$25)+SUMIF(الدخول!$B$3:$B$25,D26,الدخول!$S$3:$S$25)+E26-SUMIF(الدخول!$B$3:$B$25,D26,الدخول!$L$3:$L$25)) -> 3900.06 | I26: =IF(F26="","",SUMIF(الدخول!$B$3:$B$25,D26,الدخول!$H$3:$H$25)+SUMIF(الدخول!$B$3:$B$25,D26,الدخول!$U$3:$U$25)+F26-SUMIF(الدخول!$B$3:$B$25,D26,الدخول!$N$3:$N$25)) -> 170892 | J26: =IF(G26="","",SUMIF(الدخول!$B$3:$B$25,D26,الدخول!$I$3:$I$25)+SUMIF(الدخول!$B$3:$B$25,D26,الدخول!$V$3:$V$25)+G26-SUMIF(الدخول!$B$3:$B$25,D26,الدخول!$O$3:$O$25)) -> 
A27: ابيض | B27: كروشيه | C27: 5.3cm | D27: ابيض كروشيه 5.3cm | E27: 9.22 | F27: 237 | H27: =IF(E27="","",SUMIF(الدخول!$B$3:$B$25,D27,الدخول!$F$3:$F$25)+SUMIF(الدخول!$B$3:$B$25,D27,الدخول!$S$3:$S$25)+E27-SUMIF(الدخول!$B$3:$B$25,D27,الدخول!$L$3:$L$25)) -> 9.22 | I27: =IF(F27="","",SUMIF(الدخول!$B$3:$B$25,D27,الدخول!$H$3:$H$25)+SUMIF(الدخول!$B$3:$B$25,D27,الدخول!$U$3:$U$25)+F27-SUMIF(الدخول!$B$3:$B$25,D27,الدخول!$N$3:$N$25)) -> 237 | J27: =IF(G27="","",SUMIF(الدخول!$B$3:$B$25,D27,الدخول!$I$3:$I$25)+SUMIF(الدخول!$B$3:$B$25,D27,الدخول!$V$3:$V$25)+G27-SUMIF(الدخول!$B$3:$B$25,D27,الدخول!$O$3:$O$25)) -> 
A28: ابيض | B28: كروشيه | C28: 5.5cm | D28: ابيض كروشيه 5.5cm | E28: 5024.9 | F28: 168405 | H28: =IF(E28="","",SUMIF(الدخول!$B$3:$B$25,D28,الدخول!$F$3:$F$25)+SUMIF(الدخول!$B$3:$B$25,D28,الدخول!$S$3:$S$25)+E28-SUMIF(الدخول!$B$3:$B$25,D28,الدخول!$L$3:$L$25)) -> 5024.9 | I28: =IF(F28="","",SUMIF(الدخول!$B$3:$B$25,D28,الدخول!$H$3:$H$25)+SUMIF(الدخول!$B$3:$B$25,D28,الدخول!$U$3:$U$25)+F28-SUMIF(الدخول!$B$3:$B$25,D28,الدخول!$N$3:$N$25)) -> 168405 | J28: =IF(G28="","",SUMIF(الدخول!$B$3:$B$25,D28,الدخول!$I$3:$I$25)+SUMIF(الدخول!$B$3:$B$25,D28,الدخول!$V$3:$V$25)+G28-SUMIF(الدخول!$B$3:$B$25,D28,الدخول!$O$3:$O$25)) -> 
A29: ابيض | B29: كروشيه | C29: 5.8cm | D29: ابيض كروشيه 5.8cm | E29: 9.22 | F29: 341 | H29: =IF(E29="","",SUMIF(الدخول!$B$3:$B$25,D29,الدخول!$F$3:$F$25)+SUMIF(الدخول!$B$3:$B$25,D29,الدخول!$S$3:$S$25)+E29-SUMIF(الدخول!$B$3:$B$25,D29,الدخول!$L$3:$L$25)) -> 9.22 | I29: =IF(F29="","",SUMIF(الدخول!$B$3:$B$25,D29,الدخول!$H$3:$H$25)+SUMIF(الدخول!$B$3:$B$25,D29,الدخول!$U$3:$U$25)+F29-SUMIF(الدخول!$B$3:$B$25,D29,الدخول!$N$3:$N$25)) -> 341
A30: ابيض | B30: كروشيه | C30: 5cm | D30: ابيض كروشيه 5cm | E30: 868.1 | F30: 34545 | H30: =IF(E30="","",SUMIF(الدخول!$B$3:$B$25,D30,الدخول!$F$3:$F$25)+SUMIF(الدخول!$B$3:$B$25,D30,الدخول!$S$3:$S$25)+E30-SUMIF(الدخول!$B$3:$B$25,D30,الدخول!$L$3:$L$25)) -> 859.1 | I30: =IF(F30="","",SUMIF(الدخول!$B$3:$B$25,D30,الدخول!$H$3:$H$25)+SUMIF(الدخول!$B$3:$B$25,D30,الدخول!$U$3:$U$25)+F30-SUMIF(الدخول!$B$3:$B$25,D30,الدخول!$N$3:$N$25)) -> 34542 | J30: =IF(G30="","",SUMIF(الدخول!$B$3:$B$25,D30,الدخول!$I$3:$I$25)+SUMIF(الدخول!$B$3:$B$25,D30,الدخول!$V$3:$V$25)+G30-SUMIF(الدخول!$B$3:$B$25,D30,الدخول!$O$3:$O$25)) -> 
A31: ابيض | B31: كروشيه | C31: 5m | D31: ابيض كروشيه 5m | H31: =IF(E31="","",SUMIF(الدخول!$B$3:$B$25,D31,الدخول!$F$3:$F$25)+SUMIF(الدخول!$B$3:$B$25,D31,الدخول!$S$3:$S$25)+E31-SUMIF(الدخول!$B$3:$B$25,D31,الدخول!$L$3:$L$25)) ->  | I31: =IF(F31="","",SUMIF(الدخول!$B$3:$B$25,D31,الدخول!$H$3:$H$25)+SUMIF(الدخول!$B$3:$B$25,D31,الدخول!$U$3:$U$25)+F31-SUMIF(الدخول!$B$3:$B$25,D31,الدخول!$N$3:$N$25)) ->  | J31: =IF(G31="","",SUMIF(الدخول!$B$3:$B$25,D31,الدخول!$I$3:$I$25)+SUMIF(الدخول!$B$3:$B$25,D31,الدخول!$V$3:$V$25)+G31-SUMIF(الدخول!$B$3:$B$25,D31,الدخول!$O$3:$O$25)) -> 
A32: ابيض | B32: كروشيه | C32: 5mm | D32: ابيض كروشيه 5mm | E32: 5.84 | F32: 5178 | H32: =IF(E32="","",SUMIF(الدخول!$B$3:$B$25,D32,الدخول!$F$3:$F$25)+SUMIF(الدخول!$B$3:$B$25,D32,الدخول!$S$3:$S$25)+E32-SUMIF(الدخول!$B$3:$B$25,D32,الدخول!$L$3:$L$25)) -> 5.84 | I32: =IF(F32="","",SUMIF(الدخول!$B$3:$B$25,D32,الدخول!$H$3:$H$25)+SUMIF(الدخول!$B$3:$B$25,D32,الدخول!$U$3:$U$25)+F32-SUMIF(الدخول!$B$3:$B$25,D32,الدخول!$N$3:$N$25)) -> 5178 | J32: =IF(G32="","",SUMIF(الدخول!$B$3:$B$25,D32,الدخول!$I$3:$I$25)+SUMIF(الدخول!$B$3:$B$25,D32,الدخول!$V$3:$V$25)+G32-SUMIF(الدخول!$B$3:$B$25,D32,الدخول!$O$3:$O$25)) -> 
A33: ابيض | B33: كروشيه | C33: 6.3cm | D33: ابيض كروشيه 6.3cm | H33: =IF(E33="","",SUMIF(الدخول!$B$3:$B$25,D33,الدخول!$F$3:$F$25)+SUMIF(الدخول!$B$3:$B$25,D33,الدخول!$S$3:$S$25)+E33-SUMIF(الدخول!$B$3:$B$25,D33,الدخول!$L$3:$L$25)) ->  | I33: =IF(F33="","",SUMIF(الدخول!$B$3:$B$25,D33,الدخول!$H$3:$H$25)+SUMIF(الدخول!$B$3:$B$25,D33,الدخول!$U$3:$U$25)+F33-SUMIF(الدخول!$B$3:$B$25,D33,الدخول!$N$3:$N$25)) ->  | J33: =IF(G33="","",SUMIF(الدخول!$B$3:$B$25,D33,الدخول!$I$3:$I$25)+SUMIF(الدخول!$B$3:$B$25,D33,الدخول!$V$3:$V$25)+G33-SUMIF(الدخول!$B$3:$B$25,D33,الدخول!$O$3:$O$25)) -> 
A34: ابيض | B34: كروشيه | C34: 6.5cm | D34: ابيض كروشيه 6.5cm | E34: 673.06 | F34: 20148 | H34: =IF(E34="","",SUMIF(الدخول!$B$3:$B$25,D34,الدخول!$F$3:$F$25)+SUMIF(الدخول!$B$3:$B$25,D34,الدخول!$S$3:$S$25)+E34-SUMIF(الدخول!$B$3:$B$25,D34,الدخول!$L$3:$L$25)) -> 673.06 | I34: =IF(F34="","",SUMIF(الدخول!$B$3:$B$25,D34,الدخول!$H$3:$H$25)+SUMIF(الدخول!$B$3:$B$25,D34,الدخول!$U$3:$U$25)+F34-SUMIF(الدخول!$B$3:$B$25,D34,الدخول!$N$3:$N$25)) -> 20148 | J34: =IF(G34="","",SUMIF(الدخول!$B$3:$B$25,D34,الدخول!$I$3:$I$25)+SUMIF(الدخول!$B$3:$B$25,D34,الدخول!$V$3:$V$25)+G34-SUMIF(الدخول!$B$3:$B$25,D34,الدخول!$O$3:$O$25)) -> 
A35: ابيض | B35: كروشيه | C35: 6m | D35: ابيض كروشيه 6m | H35: =IF(E35="","",SUMIF(الدخول!$B$3:$B$25,D35,الدخول!$F$3:$F$25)+SUMIF(الدخول!$B$3:$B$25,D35,الدخول!$S$3:$S$25)+E35-SUMIF(الدخول!$B$3:$B$25,D35,الدخول!$L$3:$L$25)) ->  | I35: =IF(F35="","",SUMIF(الدخول!$B$3:$B$25,D35,الدخول!$H$3:$H$25)+SUMIF(الدخول!$B$3:$B$25,D35,الدخول!$U$3:$U$25)+F35-SUMIF(الدخول!$B$3:$B$25,D35,الدخول!$N$3:$N$25)) ->  | J35: =IF(G35="","",SUMIF(الدخول!$B$3:$B$25,D35,الدخول!$I$3:$I$25)+SUMIF(الدخول!$B$3:$B$25,D35,الدخول!$V$3:$V$25)+G35-SUMIF(الدخول!$B$3:$B$25,D35,الدخول!$O$3:$O$25)) -> 
A36: ابيض | B36: كروشيه | C36: 6mm | D36: ابيض كروشيه 6mm | E36: 35.04 | F36: 8568 | H36: =IF(E36="","",SUMIF(الدخول!$B$3:$B$25,D36,الدخول!$F$3:$F$25)+SUMIF(الدخول!$B$3:$B$25,D36,الدخول!$S$3:$S$25)+E36-SUMIF(الدخول!$B$3:$B$25,D36,الدخول!$L$3:$L$25)) -> 35.04 | I36: =IF(F36="","",SUMIF(الدخول!$B$3:$B$25,D36,الدخول!$H$3:$H$25)+SUMIF(الدخول!$B$3:$B$25,D36,الدخول!$U$3:$U$25)+F36-SUMIF(الدخول!$B$3:$B$25,D36,الدخول!$N$3:$N$25)) -> 8568 | J36: =IF(G36="","",SUMIF(الدخول!$B$3:$B$25,D36,الدخول!$I$3:$I$25)+SUMIF(الدخول!$B$3:$B$25,D36,الدخول!$V$3:$V$25)+G36-SUMIF(الدخول!$B$3:$B$25,D36,الدخول!$O$3:$O$25)) -> 
A37: ابيض | B37: كروشيه | C37: 7cm | D37: ابيض كروشيه 7cm | H37: =IF(E37="","",SUMIF(الدخول!$B$3:$B$25,D37,الدخول!$F$3:$F$25)+SUMIF(الدخول!$B$3:$B$25,D37,الدخول!$S$3:$S$25)+E37-SUMIF(الدخول!$B$3:$B$25,D37,الدخول!$L$3:$L$25)) ->  | I37: =IF(F37="","",SUMIF(الدخول!$B$3:$B$25,D37,الدخول!$H$3:$H$25)+SUMIF(الدخول!$B$3:$B$25,D37,الدخول!$U$3:$U$25)+F37-SUMIF(الدخول!$B$3:$B$25,D37,الدخول!$N$3:$N$25)) ->  | J37: =IF(G37="","",SUMIF(الدخول!$B$3:$B$25,D37,الدخول!$I$3:$I$25)+SUMIF(الدخول!$B$3:$B$25,D37,الدخول!$V$3:$V$25)+G37-SUMIF(الدخول!$B$3:$B$25,D37,الدخول!$O$3:$O$25)) -> 
A38: ابيض | B38: كروشيه | C38: 7m | D38: ابيض كروشيه 7m | H38: =IF(E38="","",SUMIF(الدخول!$B$3:$B$25,D38,الدخول!$F$3:$F$25)+SUMIF(الدخول!$B$3:$B$25,D38,الدخول!$S$3:$S$25)+E38-SUMIF(الدخول!$B$3:$B$25,D38,الدخول!$L$3:$L$25)) ->  | I38: =IF(F38="","",SUMIF(الدخول!$B$3:$B$25,D38,الدخول!$H$3:$H$25)+SUMIF(الدخول!$B$3:$B$25,D38,الدخول!$U$3:$U$25)+F38-SUMIF(الدخول!$B$3:$B$25,D38,الدخول!$N$3:$N$25)) ->  | J38: =IF(G38="","",SUMIF(الدخول!$B$3:$B$25,D38,الدخول!$I$3:$I$25)+SUMIF(الدخول!$B$3:$B$25,D38,الدخول!$V$3:$V$25)+G38-SUMIF(الدخول!$B$3:$B$25,D38,الدخول!$O$3:$O$25)) -> 
A39: ابيض | B39: كروشيه | C39: 7mm | D39: ابيض كروشيه 7mm | E39: 5.84 | F39: 1315 | H39: =IF(E39="","",SUMIF(الدخول!$B$3:$B$25,D39,الدخول!$F$3:$F$25)+SUMIF(الدخول!$B$3:$B$25,D39,الدخول!$S$3:$S$25)+E39-SUMIF(الدخول!$B$3:$B$25,D39,الدخول!$L$3:$L$25)) -> 5.84 | I39: =IF(F39="","",SUMIF(الدخول!$B$3:$B$25,D39,الدخول!$H$3:$H$25)+SUMIF(الدخول!$B$3:$B$25,D39,الدخول!$U$3:$U$25)+F39-SUMIF(الدخول!$B$3:$B$25,D39,الدخول!$N$3:$N$25)) -> 1315 | J39: =IF(G39="","",SUMIF(الدخول!$B$3:$B$25,D39,الدخول!$I$3:$I$25)+SUMIF(الدخول!$B$3:$B$25,D39,الدخول!$V$3:$V$25)+G39-SUMIF(الدخول!$B$3:$B$25,D39,الدخول!$O$3:$O$25)) -> 
A40: ابيض | B40: كروشيه | C40: 8mm | D40: ابيض كروشيه 8mm | E40: 5.84 | F40: 1168 | H40: =IF(E40="","",SUMIF(الدخول!$B$3:$B$25,D40,الدخول!$F$3:$F$25)+SUMIF(الدخول!$B$3:$B$25,D40,الدخول!$S$3:$S$25)+E40-SUMIF(الدخول!$B$3:$B$25,D40,الدخول!$L$3:$L$25)) -> 3.84 | I40: =IF(F40="","",SUMIF(الدخول!$B$3:$B$25,D40,الدخول!$H$3:$H$25)+SUMIF(الدخول!$B$3:$B$25,D40,الدخول!$U$3:$U$25)+F40-SUMIF(الدخول!$B$3:$B$25,D40,الدخول!$N$3:$N$25)) -> 1165 | J40: =IF(G40="","",SUMIF(الدخول!$B$3:$B$25,D40,الدخول!$I$3:$I$25)+SUMIF(الدخول!$B$3:$B$25,D40,الدخول!$V$3:$V$25)+G40-SUMIF(الدخول!$B$3:$B$25,D40,الدخول!$O$3:$O$25)) -> 
A41: ابيض | B41: ووفين | C41: 1.5cm | D41: ابيض ووفين 1.5cm | E41: 272.8 | H41: =IF(E41="","",SUMIF(الدخول!$B$3:$B$25,D41,الدخول!$F$3:$F$25)+SUMIF(الدخول!$B$3:$B$25,D41,الدخول!$S$3:$S$25)+E41-SUMIF(الدخول!$B$3:$B$25,D41,الدخول!$L$3:$L$25)) -> 272.8 | I41: =IF(F41="","",SUMIF(الدخول!$B$3:$B$25,D41,الدخول!$H$3:$H$25)+SUMIF(الدخول!$B$3:$B$25,D41,الدخول!$U$3:$U$25)+F41-SUMIF(الدخول!$B$3:$B$25,D41,الدخول!$N$3:$N$25)) ->  | J41: =IF(G41="","",SUMIF(الدخول!$B$3:$B$25,D41,الدخول!$I$3:$I$25)+SUMIF(الدخول!$B$3:$B$25,D41,الدخول!$V$3:$V$25)+G41-SUMIF(الدخول!$B$3:$B$25,D41,الدخول!$O$3:$O$25)) -> 
A42: ابيض | B42: ووفين | C42: 2.5cm | D42: ابيض ووفين 2.5cm | E42: 275 | H42: =IF(E42="","",SUMIF(الدخول!$B$3:$B$25,D42,الدخول!$F$3:$F$25)+SUMIF(الدخول!$B$3:$B$25,D42,الدخول!$S$3:$S$25)+E42-SUMIF(الدخول!$B$3:$B$25,D42,الدخول!$L$3:$L$25)) -> 275 | I42: =IF(F42="","",SUMIF(الدخول!$B$3:$B$25,D42,الدخول!$H$3:$H$25)+SUMIF(الدخول!$B$3:$B$25,D42,الدخول!$U$3:$U$25)+F42-SUMIF(الدخول!$B$3:$B$25,D42,الدخول!$N$3:$N$25)) ->  | J42: =IF(G42="","",SUMIF(الدخول!$B$3:$B$25,D42,الدخول!$I$3:$I$25)+SUMIF(الدخول!$B$3:$B$25,D42,الدخول!$V$3:$V$25)+G42-SUMIF(الدخول!$B$3:$B$25,D42,الدخول!$O$3:$O$25)) -> 
A43: ابيض | B43: ووفين ساندوتش | C43: 1.5cm | D43: ابيض ووفين ساندوتش 1.5cm | E43: 66 | H43: =IF(E43="","",SUMIF(الدخول!$B$3:$B$25,D43,الدخول!$F$3:$F$25)+SUMIF(الدخول!$B$3:$B$25,D43,الدخول!$S$3:$S$25)+E43-SUMIF(الدخول!$B$3:$B$25,D43,الدخول!$L$3:$L$25)) -> 66 | I43: =IF(F43="","",SUMIF(الدخول!$B$3:$B$25,D43,الدخول!$H$3:$H$25)+SUMIF(الدخول!$B$3:$B$25,D43,الدخول!$U$3:$U$25)+F43-SUMIF(الدخول!$B$3:$B$25,D43,الدخول!$N$3:$N$25)) ->  | J43: =IF(G43="","",SUMIF(الدخول!$B$3:$B$25,D43,الدخول!$I$3:$I$25)+SUMIF(الدخول!$B$3:$B$25,D43,الدخول!$V$3:$V$25)+G43-SUMIF(الدخول!$B$3:$B$25,D43,الدخول!$O$3:$O$25)) -> 
A44: ابيض | B44: ووفين ساندوتش | C44: 2.2cm | D44: ابيض ووفين ساندوتش 2.2cm | E44: 41.2 | H44: =IF(E44="","",SUMIF(الدخول!$B$3:$B$25,D44,الدخول!$F$3:$F$25)+SUMIF(الدخول!$B$3:$B$25,D44,الدخول!$S$3:$S$25)+E44-SUMIF(الدخول!$B$3:$B$25,D44,الدخول!$L$3:$L$25)) -> 41.2 | I44: =IF(F44="","",SUMIF(الدخول!$B$3:$B$25,D44,الدخول!$H$3:$H$25)+SUMIF(الدخول!$B$3:$B$25,D44,الدخول!$U$3:$U$25)+F44-SUMIF(الدخول!$B$3:$B$25,D44,الدخول!$N$3:$N$25)) ->  | J44: =IF(G44="","",SUMIF(الدخول!$B$3:$B$25,D44,الدخول!$I$3:$I$25)+SUMIF(الدخول!$B$3:$B$25,D44,الدخول!$V$3:$V$25)+G44-SUMIF(الدخول!$B$3:$B$25,D44,الدخول!$O$3:$O$25)) -> 
A45: ابيض | B45: ووفين ساندوتش | C45: 2.5cm | D45: ابيض ووفين ساندوتش 2.5cm | E45: 38.87 | H45: =IF(E45="","",SUMIF(الدخول!$B$3:$B$25,D45,الدخول!$F$3:$F$25)+SUMIF(الدخول!$B$3:$B$25,D45,الدخول!$S$3:$S$25)+E45-SUMIF(الدخول!$B$3:$B$25,D45,الدخول!$L$3:$L$25)) -> 38.87 | I45: =IF(F45="","",SUMIF(الدخول!$B$3:$B$25,D45,الدخول!$H$3:$H$25)+SUMIF(الدخول!$B$3:$B$25,D45,الدخول!$U$3:$U$25)+F45-SUMIF(الدخول!$B$3:$B$25,D45,الدخول!$N$3:$N$25)) ->  | J45: =IF(G45="","",SUMIF(الدخول!$B$3:$B$25,D45,الدخول!$I$3:$I$25)+SUMIF(الدخول!$B$3:$B$25,D45,الدخول!$V$3:$V$25)+G45-SUMIF(الدخول!$B$3:$B$25,D45,الدخول!$O$3:$O$25)) -> 
A46: ابيض | B46: ووفين ساندوتش القطة | C46: 2.5cm | D46: ابيض ووفين ساندوتش القطة 2.5cm | E46: 5 | H46: =IF(E46="","",SUMIF(الدخول!$B$3:$B$25,D46,الدخول!$F$3:$F$25)+SUMIF(الدخول!$B$3:$B$25,D46,الدخول!$S$3:$S$25)+E46-SUMIF(الدخول!$B$3:$B$25,D46,الدخول!$L$3:$L$25)) -> 5 | I46: =IF(F46="","",SUMIF(الدخول!$B$3:$B$25,D46,الدخول!$H$3:$H$25)+SUMIF(الدخول!$B$3:$B$25,D46,الدخول!$U$3:$U$25)+F46-SUMIF(الدخول!$B$3:$B$25,D46,الدخول!$N$3:$N$25)) ->  | J46: =IF(G46="","",SUMIF(الدخول!$B$3:$B$25,D46,الدخول!$I$3:$I$25)+SUMIF(الدخول!$B$3:$B$25,D46,الدخول!$V$3:$V$25)+G46-SUMIF(الدخول!$B$3:$B$25,D46,الدخول!$O$3:$O$25)) -> 
A47: ابيض | B47: ووفين ساندوتش قديم | C47: 1.5cm | D47: ابيض ووفين ساندوتش قديم 1.5cm | E47: 251.1 | H47: =IF(E47="","",SUMIF(الدخول!$B$3:$B$25,D47,الدخول!$F$3:$F$25)+SUMIF(الدخول!$B$3:$B$25,D47,الدخول!$S$3:$S$25)+E47-SUMIF(الدخول!$B$3:$B$25,D47,الدخول!$L$3:$L$25)) -> 251.1 | I47: =IF(F47="","",SUMIF(الدخول!$B$3:$B$25,D47,الدخول!$H$3:$H$25)+SUMIF(الدخول!$B$3:$B$25,D47,الدخول!$U$3:$U$25)+F47-SUMIF(الدخول!$B$3:$B$25,D47,الدخول!$N$3:$N$25)) ->  | J47: =IF(G47="","",SUMIF(الدخول!$B$3:$B$25,D47,الدخول!$I$3:$I$25)+SUMIF(الدخول!$B$3:$B$25,D47,الدخول!$V$3:$V$25)+G47-SUMIF(الدخول!$B$3:$B$25,D47,الدخول!$O$3:$O$25)) -> 
A48: ابيض | B48: ووفين ساندوتش قديم | C48: 1.6 cm | D48: ابيض ووفين ساندوتش قديم 1.6 cm | E48: 13.4 | H48: =IF(E48="","",SUMIF(الدخول!$B$3:$B$25,D48,الدخول!$F$3:$F$25)+SUMIF(الدخول!$B$3:$B$25,D48,الدخول!$S$3:$S$25)+E48-SUMIF(الدخول!$B$3:$B$25,D48,الدخول!$L$3:$L$25)) -> 13.4 | I48: =IF(F48="","",SUMIF(الدخول!$B$3:$B$25,D48,الدخول!$H$3:$H$25)+SUMIF(الدخول!$B$3:$B$25,D48,الدخول!$U$3:$U$25)+F48-SUMIF(الدخول!$B$3:$B$25,D48,الدخول!$N$3:$N$25)) ->  | J48: =IF(G48="","",SUMIF(الدخول!$B$3:$B$25,D48,الدخول!$I$3:$I$25)+SUMIF(الدخول!$B$3:$B$25,D48,الدخول!$V$3:$V$25)+G48-SUMIF(الدخول!$B$3:$B$25,D48,الدخول!$O$3:$O$25)) -> 
A49: ابيض | B49: ووفين فستون | C49: 1cm | D49: ابيض ووفين فستون 1cm | E49: 80.15 | H49: =IF(E49="","",SUMIF(الدخول!$B$3:$B$25,D49,الدخول!$F$3:$F$25)+SUMIF(الدخول!$B$3:$B$25,D49,الدخول!$S$3:$S$25)+E49-SUMIF(الدخول!$B$3:$B$25,D49,الدخول!$L$3:$L$25)) -> 80.15 | I49: =IF(F49="","",SUMIF(الدخول!$B$3:$B$25,D49,الدخول!$H$3:$H$25)+SUMIF(الدخول!$B$3:$B$25,D49,الدخول!$U$3:$U$25)+F49-SUMIF(الدخول!$B$3:$B$25,D49,الدخول!$N$3:$N$25)) ->  | J49: =IF(G49="","",SUMIF(الدخول!$B$3:$B$25,D49,الدخول!$I$3:$I$25)+SUMIF(الدخول!$B$3:$B$25,D49,الدخول!$V$3:$V$25)+G49-SUMIF(الدخول!$B$3:$B$25,D49,الدخول!$O$3:$O$25)) -> 
A50: ابيض | B50: ووفين فستون | C50: 1cm | D50: ابيض ووفين فستون 1cm | E50: 80.15 | H50: =IF(E50="","",SUMIF(الدخول!$B$3:$B$25,D50,الدخول!$F$3:$F$25)+SUMIF(الدخول!$B$3:$B$25,D50,الدخول!$S$3:$S$25)+E50-SUMIF(الدخول!$B$3:$B$25,D50,الدخول!$L$3:$L$25)) -> 80.15 | I50: =IF(F50="","",SUMIF(الدخول!$B$3:$B$25,D50,الدخول!$H$3:$H$25)+SUMIF(الدخول!$B$3:$B$25,D50,الدخول!$U$3:$U$25)+F50-SUMIF(الدخول!$B$3:$B$25,D50,الدخول!$N$3:$N$25)) ->  | J50: =IF(G50="","",SUMIF(الدخول!$B$3:$B$25,D50,الدخول!$I$3:$I$25)+SUMIF(الدخول!$B$3:$B$25,D50,الدخول!$V$3:$V$25)+G50-SUMIF(الدخول!$B$3:$B$25,D50,الدخول!$O$3:$O$25)) -> 
A51: ابيض 406 | B51: كروشيه | C51: 5 cm | D51: ابيض 406 كروشيه 5 cm | E51: 110.46 | F51: 4872 | H51: =IF(E51="","",SUMIF(الدخول!$B$3:$B$25,D51,الدخول!$F$3:$F$25)+SUMIF(الدخول!$B$3:$B$25,D51,الدخول!$S$3:$S$25)+E51-SUMIF(الدخول!$B$3:$B$25,D51,الدخول!$L$3:$L$25)) -> 110.46 | I51: =IF(F51="","",SUMIF(الدخول!$B$3:$B$25,D51,الدخول!$H$3:$H$25)+SUMIF(الدخول!$B$3:$B$25,D51,الدخول!$U$3:$U$25)+F51-SUMIF(الدخول!$B$3:$B$25,D51,الدخول!$N$3:$N$25)) -> 4872 | J51: =IF(G51="","",SUMIF(الدخول!$B$3:$B$25,D51,الدخول!$I$3:$I$25)+SUMIF(الدخول!$B$3:$B$25,D51,الدخول!$V$3:$V$25)+G51-SUMIF(الدخول!$B$3:$B$25,D51,الدخول!$O$3:$O$25)) -> 
A52: ابيض 510 | B52: كروشيه | C52: 2.3 cm | D52: ابيض 510 كروشيه 2.3 cm | E52: 38.2 | F52: 4250 | H52: =IF(E52="","",SUMIF(الدخول!$B$3:$B$25,D52,الدخول!$F$3:$F$25)+SUMIF(الدخول!$B$3:$B$25,D52,الدخول!$S$3:$S$25)+E52-SUMIF(الدخول!$B$3:$B$25,D52,الدخول!$L$3:$L$25)) -> 38.2 | I52: =IF(F52="","",SUMIF(الدخول!$B$3:$B$25,D52,الدخول!$H$3:$H$25)+SUMIF(الدخول!$B$3:$B$25,D52,الدخول!$U$3:$U$25)+F52-SUMIF(الدخول!$B$3:$B$25,D52,الدخول!$N$3:$N$25)) -> 4250 | J52: =IF(G52="","",SUMIF(الدخول!$B$3:$B$25,D52,الدخول!$I$3:$I$25)+SUMIF(الدخول!$B$3:$B$25,D52,الدخول!$V$3:$V$25)+G52-SUMIF(الدخول!$B$3:$B$25,D52,الدخول!$O$3:$O$25)) -> 
A53: ابيض 510 | B53: كروشيه | C53: 5 cm | D53: ابيض 510 كروشيه 5 cm | E53: 46.1 | F53: 1553 | H53: =IF(E53="","",SUMIF(الدخول!$B$3:$B$25,D53,الدخول!$F$3:$F$25)+SUMIF(الدخول!$B$3:$B$25,D53,الدخول!$S$3:$S$25)+E53-SUMIF(الدخول!$B$3:$B$25,D53,الدخول!$L$3:$L$25)) -> 46.1 | I53: =IF(F53="","",SUMIF(الدخول!$B$3:$B$25,D53,الدخول!$H$3:$H$25)+SUMIF(الدخول!$B$3:$B$25,D53,الدخول!$U$3:$U$25)+F53-SUMIF(الدخول!$B$3:$B$25,D53,الدخول!$N$3:$N$25)) -> 1553 | J53: =IF(G53="","",SUMIF(الدخول!$B$3:$B$25,D53,الدخول!$I$3:$I$25)+SUMIF(الدخول!$B$3:$B$25,D53,الدخول!$V$3:$V$25)+G53-SUMIF(الدخول!$B$3:$B$25,D53,الدخول!$O$3:$O$25)) -> 
A54: ابيض فلاش | B54: كروشيه | C54: 2cm | D54: ابيض فلاش كروشيه 2cm | E54: 313.48 | F54: 22168 | H54: =IF(E54="","",SUMIF(الدخول!$B$3:$B$25,D54,الدخول!$F$3:$F$25)+SUMIF(الدخول!$B$3:$B$25,D54,الدخول!$S$3:$S$25)+E54-SUMIF(الدخول!$B$3:$B$25,D54,الدخول!$L$3:$L$25)) -> 313.48 | I54: =IF(F54="","",SUMIF(الدخول!$B$3:$B$25,D54,الدخول!$H$3:$H$25)+SUMIF(الدخول!$B$3:$B$25,D54,الدخول!$U$3:$U$25)+F54-SUMIF(الدخول!$B$3:$B$25,D54,الدخول!$N$3:$N$25)) -> 22168 | J54: =IF(G54="","",SUMIF(الدخول!$B$3:$B$25,D54,الدخول!$I$3:$I$25)+SUMIF(الدخول!$B$3:$B$25,D54,الدخول!$V$3:$V$25)+G54-SUMIF(الدخول!$B$3:$B$25,D54,الدخول!$O$3:$O$25)) -> 
A55: ابيض فلاش | B55: كروشيه | C55: 3.5cm | D55: ابيض فلاش كروشيه 3.5cm | E55: 543.98 | F55: 24721 | H55: =IF(E55="","",SUMIF(الدخول!$B$3:$B$25,D55,الدخول!$F$3:$F$25)+SUMIF(الدخول!$B$3:$B$25,D55,الدخول!$S$3:$S$25)+E55-SUMIF(الدخول!$B$3:$B$25,D55,الدخول!$L$3:$L$25)) -> 543.98 | I55: =IF(F55="","",SUMIF(الدخول!$B$3:$B$25,D55,الدخول!$H$3:$H$25)+SUMIF(الدخول!$B$3:$B$25,D55,الدخول!$U$3:$U$25)+F55-SUMIF(الدخول!$B$3:$B$25,D55,الدخول!$N$3:$N$25)) -> 24721 | J55: =IF(G55="","",SUMIF(الدخول!$B$3:$B$25,D55,الدخول!$I$3:$I$25)+SUMIF(الدخول!$B$3:$B$25,D55,الدخول!$V$3:$V$25)+G55-SUMIF(الدخول!$B$3:$B$25,D55,الدخول!$O$3:$O$25)) -> 
A56: ابيض فلاش | B56: كروشيه | C56: 4.5cm | D56: ابيض فلاش كروشيه 4.5cm | E56: 396.46 | F56: 14663 | H56: =IF(E56="","",SUMIF(الدخول!$B$3:$B$25,D56,الدخول!$F$3:$F$25)+SUMIF(الدخول!$B$3:$B$25,D56,الدخول!$S$3:$S$25)+E56-SUMIF(الدخول!$B$3:$B$25,D56,الدخول!$L$3:$L$25)) -> 396.46 | I56: =IF(F56="","",SUMIF(الدخول!$B$3:$B$25,D56,الدخول!$H$3:$H$25)+SUMIF(الدخول!$B$3:$B$25,D56,الدخول!$U$3:$U$25)+F56-SUMIF(الدخول!$B$3:$B$25,D56,الدخول!$N$3:$N$25)) -> 14663 | J56: =IF(G56="","",SUMIF(الدخول!$B$3:$B$25,D56,الدخول!$I$3:$I$25)+SUMIF(الدخول!$B$3:$B$25,D56,الدخول!$V$3:$V$25)+G56-SUMIF(الدخول!$B$3:$B$25,D56,الدخول!$O$3:$O$25)) -> 
A57: ابيض فلاش | B57: كروشيه | C57: 5cm | D57: ابيض فلاش كروشيه 5cm | E57: 1530.52 | F57: 47808 | H57: =IF(E57="","",SUMIF(الدخول!$B$3:$B$25,D57,الدخول!$F$3:$F$25)+SUMIF(الدخول!$B$3:$B$25,D57,الدخول!$S$3:$S$25)+E57-SUMIF(الدخول!$B$3:$B$25,D57,الدخول!$L$3:$L$25)) -> 1530.52 | I57: =IF(F57="","",SUMIF(الدخول!$B$3:$B$25,D57,الدخول!$H$3:$H$25)+SUMIF(الدخول!$B$3:$B$25,D57,الدخول!$U$3:$U$25)+F57-SUMIF(الدخول!$B$3:$B$25,D57,الدخول!$N$3:$N$25)) -> 47808 | J57: =IF(G57="","",SUMIF(الدخول!$B$3:$B$25,D57,الدخول!$I$3:$I$25)+SUMIF(الدخول!$B$3:$B$25,D57,الدخول!$V$3:$V$25)+G57-SUMIF(الدخول!$B$3:$B$25,D57,الدخول!$O$3:$O$25)) -> 
A58: ابيض كانون | B58: كروشيه | C58: 4.5cm | D58: ابيض كانون كروشيه 4.5cm | E58: 27.66 | F58: 921 | H58: =IF(E58="","",SUMIF(الدخول!$B$3:$B$25,D58,الدخول!$F$3:$F$25)+SUMIF(الدخول!$B$3:$B$25,D58,الدخول!$S$3:$S$25)+E58-SUMIF(الدخول!$B$3:$B$25,D58,الدخول!$L$3:$L$25)) -> 27.66 | I58: =IF(F58="","",SUMIF(الدخول!$B$3:$B$25,D58,الدخول!$H$3:$H$25)+SUMIF(الدخول!$B$3:$B$25,D58,الدخول!$U$3:$U$25)+F58-SUMIF(الدخول!$B$3:$B$25,D58,الدخول!$N$3:$N$25)) -> 921 | J58: =IF(G58="","",SUMIF(الدخول!$B$3:$B$25,D58,الدخول!$I$3:$I$25)+SUMIF(الدخول!$B$3:$B$25,D58,الدخول!$V$3:$V$25)+G58-SUMIF(الدخول!$B$3:$B$25,D58,الدخول!$O$3:$O$25)) -> 
A59: ابيض كانون | B59: كروشيه | C59: 5.5cm | D59: ابيض كانون كروشيه 5.5cm | E59: 129.08 | F59: 3627 | H59: =IF(E59="","",SUMIF(الدخول!$B$3:$B$25,D59,الدخول!$F$3:$F$25)+SUMIF(الدخول!$B$3:$B$25,D59,الدخول!$S$3:$S$25)+E59-SUMIF(الدخول!$B$3:$B$25,D59,الدخول!$L$3:$L$25)) -> 129.08 | I59: =IF(F59="","",SUMIF(الدخول!$B$3:$B$25,D59,الدخول!$H$3:$H$25)+SUMIF(الدخول!$B$3:$B$25,D59,الدخول!$U$3:$U$25)+F59-SUMIF(الدخول!$B$3:$B$25,D59,الدخول!$N$3:$N$25)) -> 3627 | J59: =IF(G59="","",SUMIF(الدخول!$B$3:$B$25,D59,الدخول!$I$3:$I$25)+SUMIF(الدخول!$B$3:$B$25,D59,الدخول!$V$3:$V$25)+G59-SUMIF(الدخول!$B$3:$B$25,D59,الدخول!$O$3:$O$25)) -> 
A60: ابيض510 | B60: كروشيه | C60: 3cm | D60: ابيض510 كروشيه 3cm | E60: 212.06 | F60: 13746 | H60: =IF(E60="","",SUMIF(الدخول!$B$3:$B$25,D60,الدخول!$F$3:$F$25)+SUMIF(الدخول!$B$3:$B$25,D60,الدخول!$S$3:$S$25)+E60-SUMIF(الدخول!$B$3:$B$25,D60,الدخول!$L$3:$L$25)) -> 212.06 | I60: =IF(F60="","",SUMIF(الدخول!$B$3:$B$25,D60,الدخول!$H$3:$H$25)+SUMIF(الدخول!$B$3:$B$25,D60,الدخول!$U$3:$U$25)+F60-SUMIF(الدخول!$B$3:$B$25,D60,الدخول!$N$3:$N$25)) -> 13746 | J60: =IF(G60="","",SUMIF(الدخول!$B$3:$B$25,D60,الدخول!$I$3:$I$25)+SUMIF(الدخول!$B$3:$B$25,D60,الدخول!$V$3:$V$25)+G60-SUMIF(الدخول!$B$3:$B$25,D60,الدخول!$O$3:$O$25)) -> 
A61: ابيض510 | B61: كروشيه | C61: 4cm | D61: ابيض510 كروشيه 4cm | E61: 27.66 | F61: 1147 | H61: =IF(E61="","",SUMIF(الدخول!$B$3:$B$25,D61,الدخول!$F$3:$F$25)+SUMIF(الدخول!$B$3:$B$25,D61,الدخول!$S$3:$S$25)+E61-SUMIF(الدخول!$B$3:$B$25,D61,الدخول!$L$3:$L$25)) -> 27.66 | I61: =IF(F61="","",SUMIF(الدخول!$B$3:$B$25,D61,الدخول!$H$3:$H$25)+SUMIF(الدخول!$B$3:$B$25,D61,الدخول!$U$3:$U$25)+F61-SUMIF(الدخول!$B$3:$B$25,D61,الدخول!$N$3:$N$25)) -> 1147 | J61: =IF(G61="","",SUMIF(الدخول!$B$3:$B$25,D61,الدخول!$I$3:$I$25)+SUMIF(الدخول!$B$3:$B$25,D61,الدخول!$V$3:$V$25)+G61-SUMIF(الدخول!$B$3:$B$25,D61,الدخول!$O$3:$O$25)) -> 
A62: احمر | B62: كورد | C62: كبسله بلاستك | D62: احمر كورد كبسله بلاستك | H62: =IF(E62="","",SUMIF(الدخول!$B$3:$B$25,D62,الدخول!$F$3:$F$25)+SUMIF(الدخول!$B$3:$B$25,D62,الدخول!$S$3:$S$25)+E62-SUMIF(الدخول!$B$3:$B$25,D62,الدخول!$L$3:$L$25)) ->  | I62: =IF(F62="","",SUMIF(الدخول!$B$3:$B$25,D62,الدخول!$H$3:$H$25)+SUMIF(الدخول!$B$3:$B$25,D62,الدخول!$U$3:$U$25)+F62-SUMIF(الدخول!$B$3:$B$25,D62,الدخول!$N$3:$N$25)) ->  | J62: =IF(G62="","",SUMIF(الدخول!$B$3:$B$25,D62,الدخول!$I$3:$I$25)+SUMIF(الدخول!$B$3:$B$25,D62,الدخول!$V$3:$V$25)+G62-SUMIF(الدخول!$B$3:$B$25,D62,الدخول!$O$3:$O$25)) -> 
A63: احمر | B63: كورد | C63: مبطط | D63: احمر كورد مبطط | H63: =IF(E63="","",SUMIF(الدخول!$B$3:$B$25,D63,الدخول!$F$3:$F$25)+SUMIF(الدخول!$B$3:$B$25,D63,الدخول!$S$3:$S$25)+E63-SUMIF(الدخول!$B$3:$B$25,D63,الدخول!$L$3:$L$25)) ->  | I63: =IF(F63="","",SUMIF(الدخول!$B$3:$B$25,D63,الدخول!$H$3:$H$25)+SUMIF(الدخول!$B$3:$B$25,D63,الدخول!$U$3:$U$25)+F63-SUMIF(الدخول!$B$3:$B$25,D63,الدخول!$N$3:$N$25)) ->  | J63: =IF(G63="","",SUMIF(الدخول!$B$3:$B$25,D63,الدخول!$I$3:$I$25)+SUMIF(الدخول!$B$3:$B$25,D63,الدخول!$V$3:$V$25)+G63-SUMIF(الدخول!$B$3:$B$25,D63,الدخول!$O$3:$O$25)) -> 
A64: اخضر | B64: كورد | C64: مبطط | D64: اخضر كورد مبطط | H64: =IF(E64="","",SUMIF(الدخول!$B$3:$B$25,D64,الدخول!$F$3:$F$25)+SUMIF(الدخول!$B$3:$B$25,D64,الدخول!$S$3:$S$25)+E64-SUMIF(الدخول!$B$3:$B$25,D64,الدخول!$L$3:$L$25)) ->  | I64: =IF(F64="","",SUMIF(الدخول!$B$3:$B$25,D64,الدخول!$H$3:$H$25)+SUMIF(الدخول!$B$3:$B$25,D64,الدخول!$U$3:$U$25)+F64-SUMIF(الدخول!$B$3:$B$25,D64,الدخول!$N$3:$N$25)) ->  | J64: =IF(G64="","",SUMIF(الدخول!$B$3:$B$25,D64,الدخول!$I$3:$I$25)+SUMIF(الدخول!$B$3:$B$25,D64,الدخول!$V$3:$V$25)+G64-SUMIF(الدخول!$B$3:$B$25,D64,الدخول!$O$3:$O$25)) -> 
A65: اخضر X زيتي | B65: بايبينج | C65: 1cm | D65: اخضر X زيتي بايبينج 1cm | E65: 62.46 | F65: 12492 | H65: =IF(E65="","",SUMIF(الدخول!$B$3:$B$25,D65,الدخول!$F$3:$F$25)+SUMIF(الدخول!$B$3:$B$25,D65,الدخول!$S$3:$S$25)+E65-SUMIF(الدخول!$B$3:$B$25,D65,الدخول!$L$3:$L$25)) -> 62.46 | I65: =IF(F65="","",SUMIF(الدخول!$B$3:$B$25,D65,الدخول!$H$3:$H$25)+SUMIF(الدخول!$B$3:$B$25,D65,الدخول!$U$3:$U$25)+F65-SUMIF(الدخول!$B$3:$B$25,D65,الدخول!$N$3:$N$25)) -> 12492 | J65: =IF(G65="","",SUMIF(الدخول!$B$3:$B$25,D65,الدخول!$I$3:$I$25)+SUMIF(الدخول!$B$3:$B$25,D65,الدخول!$V$3:$V$25)+G65-SUMIF(الدخول!$B$3:$B$25,D65,الدخول!$O$3:$O$25)) -> 
A66: اسود | B66: استك طبي | C66: 2.26 | D66: =A66&" "&B66&" "&C66 -> اسود استك طبي 2.26 | H66: =IF(E66="","",SUMIF(الدخول!$B$3:$B$25,D66,الدخول!$F$3:$F$25)+SUMIF(الدخول!$B$3:$B$25,D66,الدخول!$S$3:$S$25)+E66-SUMIF(الدخول!$B$3:$B$25,D66,الدخول!$L$3:$L$25)) ->  | I66: =IF(F66="","",SUMIF(الدخول!$B$3:$B$25,D66,الدخول!$H$3:$H$25)+SUMIF(الدخول!$B$3:$B$25,D66,الدخول!$U$3:$U$25)+F66-SUMIF(الدخول!$B$3:$B$25,D66,الدخول!$N$3:$N$25)) ->  | J66: =IF(G66="","",SUMIF(الدخول!$B$3:$B$25,D66,الدخول!$I$3:$I$25)+SUMIF(الدخول!$B$3:$B$25,D66,الدخول!$V$3:$V$25)+G66-SUMIF(الدخول!$B$3:$B$25,D66,الدخول!$O$3:$O$25)) -> 
A67: اسود | B67: استك طبي | C67: 2.98 | D67: اسود استك طبي 2.98 | H67: =IF(E67="","",SUMIF(الدخول!$B$3:$B$25,D67,الدخول!$F$3:$F$25)+SUMIF(الدخول!$B$3:$B$25,D67,الدخول!$S$3:$S$25)+E67-SUMIF(الدخول!$B$3:$B$25,D67,الدخول!$L$3:$L$25)) ->  | I67: =IF(F67="","",SUMIF(الدخول!$B$3:$B$25,D67,الدخول!$H$3:$H$25)+SUMIF(الدخول!$B$3:$B$25,D67,الدخول!$U$3:$U$25)+F67-SUMIF(الدخول!$B$3:$B$25,D67,الدخول!$N$3:$N$25)) ->  | J67: =IF(G67="","",SUMIF(الدخول!$B$3:$B$25,D67,الدخول!$I$3:$I$25)+SUMIF(الدخول!$B$3:$B$25,D67,الدخول!$V$3:$V$25)+G67-SUMIF(الدخول!$B$3:$B$25,D67,الدخول!$O$3:$O$25)) -> 
A68: اسود | B68: كروشيه | C68: 1.2cm | D68: اسود كروشيه 1.2cm | E68: 9220 | F68: 1042 | H68: =IF(E68="","",SUMIF(الدخول!$B$3:$B$25,D68,الدخول!$F$3:$F$25)+SUMIF(الدخول!$B$3:$B$25,D68,الدخول!$S$3:$S$25)+E68-SUMIF(الدخول!$B$3:$B$25,D68,الدخول!$L$3:$L$25)) -> 9220 | I68: =IF(F68="","",SUMIF(الدخول!$B$3:$B$25,D68,الدخول!$H$3:$H$25)+SUMIF(الدخول!$B$3:$B$25,D68,الدخول!$U$3:$U$25)+F68-SUMIF(الدخول!$B$3:$B$25,D68,الدخول!$N$3:$N$25)) -> 1042 | J68: =IF(G68="","",SUMIF(الدخول!$B$3:$B$25,D68,الدخول!$I$3:$I$25)+SUMIF(الدخول!$B$3:$B$25,D68,الدخول!$V$3:$V$25)+G68-SUMIF(الدخول!$B$3:$B$25,D68,الدخول!$O$3:$O$25)) -> 
A69: اسود | B69: كروشيه | C69: 1.2cm | D69: اسود كروشيه 1.2cm | E69: 9.22 | F69: 1042 | H69: =IF(E69="","",SUMIF(الدخول!$B$3:$B$25,D69,الدخول!$F$3:$F$25)+SUMIF(الدخول!$B$3:$B$25,D69,الدخول!$S$3:$S$25)+E69-SUMIF(الدخول!$B$3:$B$25,D69,الدخول!$L$3:$L$25)) -> 9.22 | I69: =IF(F69="","",SUMIF(الدخول!$B$3:$B$25,D69,الدخول!$H$3:$H$25)+SUMIF(الدخول!$B$3:$B$25,D69,الدخول!$U$3:$U$25)+F69-SUMIF(الدخول!$B$3:$B$25,D69,الدخول!$N$3:$N$25)) -> 1042 | J69: =IF(G69="","",SUMIF(الدخول!$B$3:$B$25,D69,الدخول!$I$3:$I$25)+SUMIF(الدخول!$B$3:$B$25,D69,الدخول!$V$3:$V$25)+G69-SUMIF(الدخول!$B$3:$B$25,D69,الدخول!$O$3:$O$25)) -> 
A70: اسود | B70: كروشيه | C70: 1.3cm | D70: اسود كروشيه 1.3cm | E70: 382 | F70: 38450 | H70: =IF(E70="","",SUMIF(الدخول!$B$3:$B$25,D70,الدخول!$F$3:$F$25)+SUMIF(الدخول!$B$3:$B$25,D70,الدخول!$S$3:$S$25)+E70-SUMIF(الدخول!$B$3:$B$25,D70,الدخول!$L$3:$L$25)) -> 382 | I70: =IF(F70="","",SUMIF(الدخول!$B$3:$B$25,D70,الدخول!$H$3:$H$25)+SUMIF(الدخول!$B$3:$B$25,D70,الدخول!$U$3:$U$25)+F70-SUMIF(الدخول!$B$3:$B$25,D70,الدخول!$N$3:$N$25)) -> 38450 | J70: =IF(G70="","",SUMIF(الدخول!$B$3:$B$25,D70,الدخول!$I$3:$I$25)+SUMIF(الدخول!$B$3:$B$25,D70,الدخول!$V$3:$V$25)+G70-SUMIF(الدخول!$B$3:$B$25,D70,الدخول!$O$3:$O$25)) -> 
A71: اسود | B71: كروشيه | C71: 1.4cm | D71: اسود كروشيه 1.4cm | H71: =IF(E71="","",SUMIF(الدخول!$B$3:$B$25,D71,الدخول!$F$3:$F$25)+SUMIF(الدخول!$B$3:$B$25,D71,الدخول!$S$3:$S$25)+E71-SUMIF(الدخول!$B$3:$B$25,D71,الدخول!$L$3:$L$25)) ->  | I71: =IF(F71="","",SUMIF(الدخول!$B$3:$B$25,D71,الدخول!$H$3:$H$25)+SUMIF(الدخول!$B$3:$B$25,D71,الدخول!$U$3:$U$25)+F71-SUMIF(الدخول!$B$3:$B$25,D71,الدخول!$N$3:$N$25)) ->  | J71: =IF(G71="","",SUMIF(الدخول!$B$3:$B$25,D71,الدخول!$I$3:$I$25)+SUMIF(الدخول!$B$3:$B$25,D71,الدخول!$V$3:$V$25)+G71-SUMIF(الدخول!$B$3:$B$25,D71,الدخول!$O$3:$O$25)) -> 
A72: اسود | B72: كروشيه | C72: 1.5cm | D72: اسود كروشيه 1.5cm | E72: 61.12 | F72: 6944 | H72: =IF(E72="","",SUMIF(الدخول!$B$3:$B$25,D72,الدخول!$F$3:$F$25)+SUMIF(الدخول!$B$3:$B$25,D72,الدخول!$S$3:$S$25)+E72-SUMIF(الدخول!$B$3:$B$25,D72,الدخول!$L$3:$L$25)) -> 61.12 | I72: =IF(F72="","",SUMIF(الدخول!$B$3:$B$25,D72,الدخول!$H$3:$H$25)+SUMIF(الدخول!$B$3:$B$25,D72,الدخول!$U$3:$U$25)+F72-SUMIF(الدخول!$B$3:$B$25,D72,الدخول!$N$3:$N$25)) -> 6944 | J72: =IF(G72="","",SUMIF(الدخول!$B$3:$B$25,D72,الدخول!$I$3:$I$25)+SUMIF(الدخول!$B$3:$B$25,D72,الدخول!$V$3:$V$25)+G72-SUMIF(الدخول!$B$3:$B$25,D72,الدخول!$O$3:$O$25)) -> 
A73: اسود | B73: كروشيه | C73: 1.7cm | D73: اسود كروشيه 1.7cm | E73: 15.28 | F73: 1297 | H73: =IF(E73="","",SUMIF(الدخول!$B$3:$B$25,D73,الدخول!$F$3:$F$25)+SUMIF(الدخول!$B$3:$B$25,D73,الدخول!$S$3:$S$25)+E73-SUMIF(الدخول!$B$3:$B$25,D73,الدخول!$L$3:$L$25)) -> 15.28 | I73: =IF(F73="","",SUMIF(الدخول!$B$3:$B$25,D73,الدخول!$H$3:$H$25)+SUMIF(الدخول!$B$3:$B$25,D73,الدخول!$U$3:$U$25)+F73-SUMIF(الدخول!$B$3:$B$25,D73,الدخول!$N$3:$N$25)) -> 1297 | J73: =IF(G73="","",SUMIF(الدخول!$B$3:$B$25,D73,الدخول!$I$3:$I$25)+SUMIF(الدخول!$B$3:$B$25,D73,الدخول!$V$3:$V$25)+G73-SUMIF(الدخول!$B$3:$B$25,D73,الدخول!$O$3:$O$25)) -> 
A74: اسود | B74: كروشيه | C74: 1cm | D74: اسود كروشيه 1cm | E74: 15.28 | F74: 2546 | H74: =IF(E74="","",SUMIF(الدخول!$B$3:$B$25,D74,الدخول!$F$3:$F$25)+SUMIF(الدخول!$B$3:$B$25,D74,الدخول!$S$3:$S$25)+E74-SUMIF(الدخول!$B$3:$B$25,D74,الدخول!$L$3:$L$25)) -> 15.28 | I74: =IF(F74="","",SUMIF(الدخول!$B$3:$B$25,D74,الدخول!$H$3:$H$25)+SUMIF(الدخول!$B$3:$B$25,D74,الدخول!$U$3:$U$25)+F74-SUMIF(الدخول!$B$3:$B$25,D74,الدخول!$N$3:$N$25)) -> 2546 | J74: =IF(G74="","",SUMIF(الدخول!$B$3:$B$25,D74,الدخول!$I$3:$I$25)+SUMIF(الدخول!$B$3:$B$25,D74,الدخول!$V$3:$V$25)+G74-SUMIF(الدخول!$B$3:$B$25,D74,الدخول!$O$3:$O$25)) -> 
A75: اسود | B75: كروشيه | C75: 2.2cm | D75: اسود كروشيه 2.2cm | H75: =IF(E75="","",SUMIF(الدخول!$B$3:$B$25,D75,الدخول!$F$3:$F$25)+SUMIF(الدخول!$B$3:$B$25,D75,الدخول!$S$3:$S$25)+E75-SUMIF(الدخول!$B$3:$B$25,D75,الدخول!$L$3:$L$25)) ->  | I75: =IF(F75="","",SUMIF(الدخول!$B$3:$B$25,D75,الدخول!$H$3:$H$25)+SUMIF(الدخول!$B$3:$B$25,D75,الدخول!$U$3:$U$25)+F75-SUMIF(الدخول!$B$3:$B$25,D75,الدخول!$N$3:$N$25)) ->  | J75: =IF(G75="","",SUMIF(الدخول!$B$3:$B$25,D75,الدخول!$I$3:$I$25)+SUMIF(الدخول!$B$3:$B$25,D75,الدخول!$V$3:$V$25)+G75-SUMIF(الدخول!$B$3:$B$25,D75,الدخول!$O$3:$O$25)) -> 
A76: اسود | B76: كروشيه | C76: 2.5cm | D76: اسود كروشيه 2.5cm | E76: 848.24 | F76: 60536 | H76: =IF(E76="","",SUMIF(الدخول!$B$3:$B$25,D76,الدخول!$F$3:$F$25)+SUMIF(الدخول!$B$3:$B$25,D76,الدخول!$S$3:$S$25)+E76-SUMIF(الدخول!$B$3:$B$25,D76,الدخول!$L$3:$L$25)) -> 848.24 | I76: =IF(F76="","",SUMIF(الدخول!$B$3:$B$25,D76,الدخول!$H$3:$H$25)+SUMIF(الدخول!$B$3:$B$25,D76,الدخول!$U$3:$U$25)+F76-SUMIF(الدخول!$B$3:$B$25,D76,الدخول!$N$3:$N$25)) -> 60536 | J76: =IF(G76="","",SUMIF(الدخول!$B$3:$B$25,D76,الدخول!$I$3:$I$25)+SUMIF(الدخول!$B$3:$B$25,D76,الدخول!$V$3:$V$25)+G76-SUMIF(الدخول!$B$3:$B$25,D76,الدخول!$O$3:$O$25)) -> 
A77: اسود | B77: كروشيه | C77: 2cm | D77: اسود كروشيه 2cm | E77: 206.28 | F77: 19374 | H77: =IF(E77="","",SUMIF(الدخول!$B$3:$B$25,D77,الدخول!$F$3:$F$25)+SUMIF(الدخول!$B$3:$B$25,D77,الدخول!$S$3:$S$25)+E77-SUMIF(الدخول!$B$3:$B$25,D77,الدخول!$L$3:$L$25)) -> 206.28 | I77: =IF(F77="","",SUMIF(الدخول!$B$3:$B$25,D77,الدخول!$H$3:$H$25)+SUMIF(الدخول!$B$3:$B$25,D77,الدخول!$U$3:$U$25)+F77-SUMIF(الدخول!$B$3:$B$25,D77,الدخول!$N$3:$N$25)) -> 19374 | J77: =IF(G77="","",SUMIF(الدخول!$B$3:$B$25,D77,الدخول!$I$3:$I$25)+SUMIF(الدخول!$B$3:$B$25,D77,الدخول!$V$3:$V$25)+G77-SUMIF(الدخول!$B$3:$B$25,D77,الدخول!$O$3:$O$25)) -> 
A78: اسود | B78: كروشيه | C78: 3.5cm | D78: اسود كروشيه 3.5cm | E78: 267.38 | F78: 14065 | H78: =IF(E78="","",SUMIF(الدخول!$B$3:$B$25,D78,الدخول!$F$3:$F$25)+SUMIF(الدخول!$B$3:$B$25,D78,الدخول!$S$3:$S$25)+E78-SUMIF(الدخول!$B$3:$B$25,D78,الدخول!$L$3:$L$25)) -> 267.38 | I78: =IF(F78="","",SUMIF(الدخول!$B$3:$B$25,D78,الدخول!$H$3:$H$25)+SUMIF(الدخول!$B$3:$B$25,D78,الدخول!$U$3:$U$25)+F78-SUMIF(الدخول!$B$3:$B$25,D78,الدخول!$N$3:$N$25)) -> 14065 | J78: =IF(G78="","",SUMIF(الدخول!$B$3:$B$25,D78,الدخول!$I$3:$I$25)+SUMIF(الدخول!$B$3:$B$25,D78,الدخول!$V$3:$V$25)+G78-SUMIF(الدخول!$B$3:$B$25,D78,الدخول!$O$3:$O$25)) -> 
A79: اسود | B79: كروشيه | C79: 3.8cm | D79: اسود كروشيه 3.8cm | E79: 18.44 | F79: 996 | H79: =IF(E79="","",SUMIF(الدخول!$B$3:$B$25,D79,الدخول!$F$3:$F$25)+SUMIF(الدخول!$B$3:$B$25,D79,الدخول!$S$3:$S$25)+E79-SUMIF(الدخول!$B$3:$B$25,D79,الدخول!$L$3:$L$25)) -> 18.44 | I79: =IF(F79="","",SUMIF(الدخول!$B$3:$B$25,D79,الدخول!$H$3:$H$25)+SUMIF(الدخول!$B$3:$B$25,D79,الدخول!$U$3:$U$25)+F79-SUMIF(الدخول!$B$3:$B$25,D79,الدخول!$N$3:$N$25)) -> 996 | J79: =IF(G79="","",SUMIF(الدخول!$B$3:$B$25,D79,الدخول!$I$3:$I$25)+SUMIF(الدخول!$B$3:$B$25,D79,الدخول!$V$3:$V$25)+G79-SUMIF(الدخول!$B$3:$B$25,D79,الدخول!$O$3:$O$25)) -> 
A80: اسود | B80: كروشيه | C80: 3.8cm | D80: اسود كروشيه 3.8cm | E80: 18.44 | F80: 996 | H80: =IF(E80="","",SUMIF(الدخول!$B$3:$B$25,D80,الدخول!$F$3:$F$25)+SUMIF(الدخول!$B$3:$B$25,D80,الدخول!$S$3:$S$25)+E80-SUMIF(الدخول!$B$3:$B$25,D80,الدخول!$L$3:$L$25)) -> 18.44 | I80: =IF(F80="","",SUMIF(الدخول!$B$3:$B$25,D80,الدخول!$H$3:$H$25)+SUMIF(الدخول!$B$3:$B$25,D80,الدخول!$U$3:$U$25)+F80-SUMIF(الدخول!$B$3:$B$25,D80,الدخول!$N$3:$N$25)) -> 996 | J80: =IF(G80="","",SUMIF(الدخول!$B$3:$B$25,D80,الدخول!$I$3:$I$25)+SUMIF(الدخول!$B$3:$B$25,D80,الدخول!$V$3:$V$25)+G80-SUMIF(الدخول!$B$3:$B$25,D80,الدخول!$O$3:$O$25)) -> 
A81: اسود | B81: كروشيه | C81: 3cm | D81: اسود كروشيه 3cm | E81: 129.08 | F81: 7910 | H81: =IF(E81="","",SUMIF(الدخول!$B$3:$B$25,D81,الدخول!$F$3:$F$25)+SUMIF(الدخول!$B$3:$B$25,D81,الدخول!$S$3:$S$25)+E81-SUMIF(الدخول!$B$3:$B$25,D81,الدخول!$L$3:$L$25)) -> 129.08 | I81: =IF(F81="","",SUMIF(الدخول!$B$3:$B$25,D81,الدخول!$H$3:$H$25)+SUMIF(الدخول!$B$3:$B$25,D81,الدخول!$U$3:$U$25)+F81-SUMIF(الدخول!$B$3:$B$25,D81,الدخول!$N$3:$N$25)) -> 7910 | J81: =IF(G81="","",SUMIF(الدخول!$B$3:$B$25,D81,الدخول!$I$3:$I$25)+SUMIF(الدخول!$B$3:$B$25,D81,الدخول!$V$3:$V$25)+G81-SUMIF(الدخول!$B$3:$B$25,D81,الدخول!$O$3:$O$25)) -> 
A82: اسود | B82: كروشيه | C82: 4.5cm | D82: اسود كروشيه 4.5cm | E82: 46.1 | F82: 1825 | H82: =IF(E82="","",SUMIF(الدخول!$B$3:$B$25,D82,الدخول!$F$3:$F$25)+SUMIF(الدخول!$B$3:$B$25,D82,الدخول!$S$3:$S$25)+E82-SUMIF(الدخول!$B$3:$B$25,D82,الدخول!$L$3:$L$25)) -> 46.1 | I82: =IF(F82="","",SUMIF(الدخول!$B$3:$B$25,D82,الدخول!$H$3:$H$25)+SUMIF(الدخول!$B$3:$B$25,D82,الدخول!$U$3:$U$25)+F82-SUMIF(الدخول!$B$3:$B$25,D82,الدخول!$N$3:$N$25)) -> 1825 | J82: =IF(G82="","",SUMIF(الدخول!$B$3:$B$25,D82,الدخول!$I$3:$I$25)+SUMIF(الدخول!$B$3:$B$25,D82,الدخول!$V$3:$V$25)+G82-SUMIF(الدخول!$B$3:$B$25,D82,الدخول!$O$3:$O$25)) -> 
A83: اسود | B83: كروشيه | C83: 4.8cm | D83: اسود كروشيه 4.8cm | E83: 36.88 | F83: 1600 | H83: =IF(E83="","",SUMIF(الدخول!$B$3:$B$25,D83,الدخول!$F$3:$F$25)+SUMIF(الدخول!$B$3:$B$25,D83,الدخول!$S$3:$S$25)+E83-SUMIF(الدخول!$B$3:$B$25,D83,الدخول!$L$3:$L$25)) -> 36.88 | I83: =IF(F83="","",SUMIF(الدخول!$B$3:$B$25,D83,الدخول!$H$3:$H$25)+SUMIF(الدخول!$B$3:$B$25,D83,الدخول!$U$3:$U$25)+F83-SUMIF(الدخول!$B$3:$B$25,D83,الدخول!$N$3:$N$25)) -> 1600 | J83: =IF(G83="","",SUMIF(الدخول!$B$3:$B$25,D83,الدخول!$I$3:$I$25)+SUMIF(الدخول!$B$3:$B$25,D83,الدخول!$V$3:$V$25)+G83-SUMIF(الدخول!$B$3:$B$25,D83,الدخول!$O$3:$O$25)) -> 
A84: اسود | B84: كروشيه | C84: 4cm | D84: اسود كروشيه 4cm | E84: 359.58 | F84: 17004 | H84: =IF(E84="","",SUMIF(الدخول!$B$3:$B$25,D84,الدخول!$F$3:$F$25)+SUMIF(الدخول!$B$3:$B$25,D84,الدخول!$S$3:$S$25)+E84-SUMIF(الدخول!$B$3:$B$25,D84,الدخول!$L$3:$L$25)) -> 359.58 | I84: =IF(F84="","",SUMIF(الدخول!$B$3:$B$25,D84,الدخول!$H$3:$H$25)+SUMIF(الدخول!$B$3:$B$25,D84,الدخول!$U$3:$U$25)+F84-SUMIF(الدخول!$B$3:$B$25,D84,الدخول!$N$3:$N$25)) -> 17004 | J84: =IF(G84="","",SUMIF(الدخول!$B$3:$B$25,D84,الدخول!$I$3:$I$25)+SUMIF(الدخول!$B$3:$B$25,D84,الدخول!$V$3:$V$25)+G84-SUMIF(الدخول!$B$3:$B$25,D84,الدخول!$O$3:$O$25)) -> 
A85: اسود | B85: كروشيه | C85: 4m | D85: اسود كروشيه 4m | H85: =IF(E85="","",SUMIF(الدخول!$B$3:$B$25,D85,الدخول!$F$3:$F$25)+SUMIF(الدخول!$B$3:$B$25,D85,الدخول!$S$3:$S$25)+E85-SUMIF(الدخول!$B$3:$B$25,D85,الدخول!$L$3:$L$25)) ->  | I85: =IF(F85="","",SUMIF(الدخول!$B$3:$B$25,D85,الدخول!$H$3:$H$25)+SUMIF(الدخول!$B$3:$B$25,D85,الدخول!$U$3:$U$25)+F85-SUMIF(الدخول!$B$3:$B$25,D85,الدخول!$N$3:$N$25)) ->  | J85: =IF(G85="","",SUMIF(الدخول!$B$3:$B$25,D85,الدخول!$I$3:$I$25)+SUMIF(الدخول!$B$3:$B$25,D85,الدخول!$V$3:$V$25)+G85-SUMIF(الدخول!$B$3:$B$25,D85,الدخول!$O$3:$O$25)) -> 
A86: اسود | B86: كروشيه | C86: 5.5cm | D86: اسود كروشيه 5.5cm | H86: =IF(E86="","",SUMIF(الدخول!$B$3:$B$25,D86,الدخول!$F$3:$F$25)+SUMIF(الدخول!$B$3:$B$25,D86,الدخول!$S$3:$S$25)+E86-SUMIF(الدخول!$B$3:$B$25,D86,الدخول!$L$3:$L$25)) ->  | I86: =IF(F86="","",SUMIF(الدخول!$B$3:$B$25,D86,الدخول!$H$3:$H$25)+SUMIF(الدخول!$B$3:$B$25,D86,الدخول!$U$3:$U$25)+F86-SUMIF(الدخول!$B$3:$B$25,D86,الدخول!$N$3:$N$25)) ->  | J86: =IF(G86="","",SUMIF(الدخول!$B$3:$B$25,D86,الدخول!$I$3:$I$25)+SUMIF(الدخول!$B$3:$B$25,D86,الدخول!$V$3:$V$25)+G86-SUMIF(الدخول!$B$3:$B$25,D86,الدخول!$O$3:$O$25)) -> 
A87: اسود | B87: كروشيه | C87: 5.8cm | D87: اسود كروشيه 5.8cm | E87: 101.42 | F87: 3751 | H87: =IF(E87="","",SUMIF(الدخول!$B$3:$B$25,D87,الدخول!$F$3:$F$25)+SUMIF(الدخول!$B$3:$B$25,D87,الدخول!$S$3:$S$25)+E87-SUMIF(الدخول!$B$3:$B$25,D87,الدخول!$L$3:$L$25)) -> 101.42 | I87: =IF(F87="","",SUMIF(الدخول!$B$3:$B$25,D87,الدخول!$H$3:$H$25)+SUMIF(الدخول!$B$3:$B$25,D87,الدخول!$U$3:$U$25)+F87-SUMIF(الدخول!$B$3:$B$25,D87,الدخول!$N$3:$N$25)) -> 3751 | J87: =IF(G87="","",SUMIF(الدخول!$B$3:$B$25,D87,الدخول!$I$3:$I$25)+SUMIF(الدخول!$B$3:$B$25,D87,الدخول!$V$3:$V$25)+G87-SUMIF(الدخول!$B$3:$B$25,D87,الدخول!$O$3:$O$25)) -> 
A88: اسود | B88: كروشيه | C88: 5cm | D88: اسود كروشيه 5cm | H88: =IF(E88="","",SUMIF(الدخول!$B$3:$B$25,D88,الدخول!$F$3:$F$25)+SUMIF(الدخول!$B$3:$B$25,D88,الدخول!$S$3:$S$25)+E88-SUMIF(الدخول!$B$3:$B$25,D88,الدخول!$L$3:$L$25)) ->  | I88: =IF(F88="","",SUMIF(الدخول!$B$3:$B$25,D88,الدخول!$H$3:$H$25)+SUMIF(الدخول!$B$3:$B$25,D88,الدخول!$U$3:$U$25)+F88-SUMIF(الدخول!$B$3:$B$25,D88,الدخول!$N$3:$N$25)) ->  | J88: =IF(G88="","",SUMIF(الدخول!$B$3:$B$25,D88,الدخول!$I$3:$I$25)+SUMIF(الدخول!$B$3:$B$25,D88,الدخول!$V$3:$V$25)+G88-SUMIF(الدخول!$B$3:$B$25,D88,الدخول!$O$3:$O$25)) -> 
A89: اسود | B89: كروشيه | C89: 8m | D89: اسود كروشيه 8m | H89: =IF(E89="","",SUMIF(الدخول!$B$3:$B$25,D89,الدخول!$F$3:$F$25)+SUMIF(الدخول!$B$3:$B$25,D89,الدخول!$S$3:$S$25)+E89-SUMIF(الدخول!$B$3:$B$25,D89,الدخول!$L$3:$L$25)) ->  | I89: =IF(F89="","",SUMIF(الدخول!$B$3:$B$25,D89,الدخول!$H$3:$H$25)+SUMIF(الدخول!$B$3:$B$25,D89,الدخول!$U$3:$U$25)+F89-SUMIF(الدخول!$B$3:$B$25,D89,الدخول!$N$3:$N$25)) ->  | J89: =IF(G89="","",SUMIF(الدخول!$B$3:$B$25,D89,الدخول!$I$3:$I$25)+SUMIF(الدخول!$B$3:$B$25,D89,الدخول!$V$3:$V$25)+G89-SUMIF(الدخول!$B$3:$B$25,D89,الدخول!$O$3:$O$25)) -> 
A90: اسود | B90: كروشيه | C90: 8mm | D90: اسود كروشيه 8mm | E90: 11.68 | F90: 2336 | H90: =IF(E90="","",SUMIF(الدخول!$B$3:$B$25,D90,الدخول!$F$3:$F$25)+SUMIF(الدخول!$B$3:$B$25,D90,الدخول!$S$3:$S$25)+E90-SUMIF(الدخول!$B$3:$B$25,D90,الدخول!$L$3:$L$25)) -> 11.68 | I90: =IF(F90="","",SUMIF(الدخول!$B$3:$B$25,D90,الدخول!$H$3:$H$25)+SUMIF(الدخول!$B$3:$B$25,D90,الدخول!$U$3:$U$25)+F90-SUMIF(الدخول!$B$3:$B$25,D90,الدخول!$N$3:$N$25)) -> 2336 | J90: =IF(G90="","",SUMIF(الدخول!$B$3:$B$25,D90,الدخول!$I$3:$I$25)+SUMIF(الدخول!$B$3:$B$25,D90,الدخول!$V$3:$V$25)+G90-SUMIF(الدخول!$B$3:$B$25,D90,الدخول!$O$3:$O$25)) -> 
A91: اسود | B91: كورد | C91: 1cm | D91: اسود كورد 1cm | H91: =IF(E91="","",SUMIF(الدخول!$B$3:$B$25,D91,الدخول!$F$3:$F$25)+SUMIF(الدخول!$B$3:$B$25,D91,الدخول!$S$3:$S$25)+E91-SUMIF(الدخول!$B$3:$B$25,D91,الدخول!$L$3:$L$25)) ->  | I91: =IF(F91="","",SUMIF(الدخول!$B$3:$B$25,D91,الدخول!$H$3:$H$25)+SUMIF(الدخول!$B$3:$B$25,D91,الدخول!$U$3:$U$25)+F91-SUMIF(الدخول!$B$3:$B$25,D91,الدخول!$N$3:$N$25)) ->  | J91: =IF(G91="","",SUMIF(الدخول!$B$3:$B$25,D91,الدخول!$I$3:$I$25)+SUMIF(الدخول!$B$3:$B$25,D91,الدخول!$V$3:$V$25)+G91-SUMIF(الدخول!$B$3:$B$25,D91,الدخول!$O$3:$O$25)) -> 
A92: اسود | B92: كورد | C92: مبروم | D92: اسود كورد مبروم | H92: =IF(E92="","",SUMIF(الدخول!$B$3:$B$25,D92,الدخول!$F$3:$F$25)+SUMIF(الدخول!$B$3:$B$25,D92,الدخول!$S$3:$S$25)+E92-SUMIF(الدخول!$B$3:$B$25,D92,الدخول!$L$3:$L$25)) ->  | I92: =IF(F92="","",SUMIF(الدخول!$B$3:$B$25,D92,الدخول!$H$3:$H$25)+SUMIF(الدخول!$B$3:$B$25,D92,الدخول!$U$3:$U$25)+F92-SUMIF(الدخول!$B$3:$B$25,D92,الدخول!$N$3:$N$25)) ->  | J92: =IF(G92="","",SUMIF(الدخول!$B$3:$B$25,D92,الدخول!$I$3:$I$25)+SUMIF(الدخول!$B$3:$B$25,D92,الدخول!$V$3:$V$25)+G92-SUMIF(الدخول!$B$3:$B$25,D92,الدخول!$O$3:$O$25)) -> 
A93: اسود | B93: كورد | C93: مبطط | D93: اسود كورد مبطط | H93: =IF(E93="","",SUMIF(الدخول!$B$3:$B$25,D93,الدخول!$F$3:$F$25)+SUMIF(الدخول!$B$3:$B$25,D93,الدخول!$S$3:$S$25)+E93-SUMIF(الدخول!$B$3:$B$25,D93,الدخول!$L$3:$L$25)) ->  | I93: =IF(F93="","",SUMIF(الدخول!$B$3:$B$25,D93,الدخول!$H$3:$H$25)+SUMIF(الدخول!$B$3:$B$25,D93,الدخول!$U$3:$U$25)+F93-SUMIF(الدخول!$B$3:$B$25,D93,الدخول!$N$3:$N$25)) ->  | J93: =IF(G93="","",SUMIF(الدخول!$B$3:$B$25,D93,الدخول!$I$3:$I$25)+SUMIF(الدخول!$B$3:$B$25,D93,الدخول!$V$3:$V$25)+G93-SUMIF(الدخول!$B$3:$B$25,D93,الدخول!$O$3:$O$25)) -> 
A94: اسود | B94: ووفين ساندوتش | C94: 1.5cm | D94: اسود ووفين ساندوتش 1.5cm | H94: =IF(E94="","",SUMIF(الدخول!$B$3:$B$25,D94,الدخول!$F$3:$F$25)+SUMIF(الدخول!$B$3:$B$25,D94,الدخول!$S$3:$S$25)+E94-SUMIF(الدخول!$B$3:$B$25,D94,الدخول!$L$3:$L$25)) ->  | I94: =IF(F94="","",SUMIF(الدخول!$B$3:$B$25,D94,الدخول!$H$3:$H$25)+SUMIF(الدخول!$B$3:$B$25,D94,الدخول!$U$3:$U$25)+F94-SUMIF(الدخول!$B$3:$B$25,D94,الدخول!$N$3:$N$25)) ->  | J94: =IF(G94="","",SUMIF(الدخول!$B$3:$B$25,D94,الدخول!$I$3:$I$25)+SUMIF(الدخول!$B$3:$B$25,D94,الدخول!$V$3:$V$25)+G94-SUMIF(الدخول!$B$3:$B$25,D94,الدخول!$O$3:$O$25)) -> 
A95: اسود | B95: ووفين ساندوتش | C95: 1.7cm | D95: اسود ووفين ساندوتش 1.7cm | H95: =IF(E95="","",SUMIF(الدخول!$B$3:$B$25,D95,الدخول!$F$3:$F$25)+SUMIF(الدخول!$B$3:$B$25,D95,الدخول!$S$3:$S$25)+E95-SUMIF(الدخول!$B$3:$B$25,D95,الدخول!$L$3:$L$25)) ->  | I95: =IF(F95="","",SUMIF(الدخول!$B$3:$B$25,D95,الدخول!$H$3:$H$25)+SUMIF(الدخول!$B$3:$B$25,D95,الدخول!$U$3:$U$25)+F95-SUMIF(الدخول!$B$3:$B$25,D95,الدخول!$N$3:$N$25)) ->  | J95: =IF(G95="","",SUMIF(الدخول!$B$3:$B$25,D95,الدخول!$I$3:$I$25)+SUMIF(الدخول!$B$3:$B$25,D95,الدخول!$V$3:$V$25)+G95-SUMIF(الدخول!$B$3:$B$25,D95,الدخول!$O$3:$O$25)) -> 
A96: اسود | B96: ووفين ساندوتش | C96: 1.8cm | D96: اسود ووفين ساندوتش 1.8cm | H96: =IF(E96="","",SUMIF(الدخول!$B$3:$B$25,D96,الدخول!$F$3:$F$25)+SUMIF(الدخول!$B$3:$B$25,D96,الدخول!$S$3:$S$25)+E96-SUMIF(الدخول!$B$3:$B$25,D96,الدخول!$L$3:$L$25)) ->  | I96: =IF(F96="","",SUMIF(الدخول!$B$3:$B$25,D96,الدخول!$H$3:$H$25)+SUMIF(الدخول!$B$3:$B$25,D96,الدخول!$U$3:$U$25)+F96-SUMIF(الدخول!$B$3:$B$25,D96,الدخول!$N$3:$N$25)) ->  | J96: =IF(G96="","",SUMIF(الدخول!$B$3:$B$25,D96,الدخول!$I$3:$I$25)+SUMIF(الدخول!$B$3:$B$25,D96,الدخول!$V$3:$V$25)+G96-SUMIF(الدخول!$B$3:$B$25,D96,الدخول!$O$3:$O$25)) -> 
A97: اسود | B97: ووفين ساندوتش | C97: 2cm | D97: اسود ووفين ساندوتش 2cm | H97: =IF(E97="","",SUMIF(الدخول!$B$3:$B$25,D97,الدخول!$F$3:$F$25)+SUMIF(الدخول!$B$3:$B$25,D97,الدخول!$S$3:$S$25)+E97-SUMIF(الدخول!$B$3:$B$25,D97,الدخول!$L$3:$L$25)) ->  | I97: =IF(F97="","",SUMIF(الدخول!$B$3:$B$25,D97,الدخول!$H$3:$H$25)+SUMIF(الدخول!$B$3:$B$25,D97,الدخول!$U$3:$U$25)+F97-SUMIF(الدخول!$B$3:$B$25,D97,الدخول!$N$3:$N$25)) ->  | J97: =IF(G97="","",SUMIF(الدخول!$B$3:$B$25,D97,الدخول!$I$3:$I$25)+SUMIF(الدخول!$B$3:$B$25,D97,الدخول!$V$3:$V$25)+G97-SUMIF(الدخول!$B$3:$B$25,D97,الدخول!$O$3:$O$25)) -> 
A98: اسود | B98: كروشيه | C98: 5.8cm | D98: اسود كروشيه 5.8cm | H98: =IF(E98="","",SUMIF(الدخول!$B$3:$B$25,D98,الدخول!$F$3:$F$25)+SUMIF(الدخول!$B$3:$B$25,D98,الدخول!$S$3:$S$25)+E98-SUMIF(الدخول!$B$3:$B$25,D98,الدخول!$L$3:$L$25)) ->  | I98: =IF(F98="","",SUMIF(الدخول!$B$3:$B$25,D98,الدخول!$H$3:$H$25)+SUMIF(الدخول!$B$3:$B$25,D98,الدخول!$U$3:$U$25)+F98-SUMIF(الدخول!$B$3:$B$25,D98,الدخول!$N$3:$N$25)) ->  | J98: =IF(G98="","",SUMIF(الدخول!$B$3:$B$25,D98,الدخول!$I$3:$I$25)+SUMIF(الدخول!$B$3:$B$25,D98,الدخول!$V$3:$V$25)+G98-SUMIF(الدخول!$B$3:$B$25,D98,الدخول!$O$3:$O$25)) -> 
A99: اسود 510 | B99: كروشيه | C99: 2.3cm | D99: اسود 510 كروشيه 2.3cm | E99: 30.56 | F99: 2933 | H99: =IF(E99="","",SUMIF(الدخول!$B$3:$B$25,D99,الدخول!$F$3:$F$25)+SUMIF(الدخول!$B$3:$B$25,D99,الدخول!$S$3:$S$25)+E99-SUMIF(الدخول!$B$3:$B$25,D99,الدخول!$L$3:$L$25)) -> 30.56 | I99: =IF(F99="","",SUMIF(الدخول!$B$3:$B$25,D99,الدخول!$H$3:$H$25)+SUMIF(الدخول!$B$3:$B$25,D99,الدخول!$U$3:$U$25)+F99-SUMIF(الدخول!$B$3:$B$25,D99,الدخول!$N$3:$N$25)) -> 2933 | J99: =IF(G99="","",SUMIF(الدخول!$B$3:$B$25,D99,الدخول!$I$3:$I$25)+SUMIF(الدخول!$B$3:$B$25,D99,الدخول!$V$3:$V$25)+G99-SUMIF(الدخول!$B$3:$B$25,D99,الدخول!$O$3:$O$25)) -> 
A100: اسود 510 | B100: كروشيه | C100: 2.5cm | D100: اسود 510 كروشيه 2.5cm | E100: 9.22 | F100: 625 | H100: =IF(E100="","",SUMIF(الدخول!$B$3:$B$25,D100,الدخول!$F$3:$F$25)+SUMIF(الدخول!$B$3:$B$25,D100,الدخول!$S$3:$S$25)+E100-SUMIF(الدخول!$B$3:$B$25,D100,الدخول!$L$3:$L$25)) -> 9.22 | I100: =IF(F100="","",SUMIF(الدخول!$B$3:$B$25,D100,الدخول!$H$3:$H$25)+SUMIF(الدخول!$B$3:$B$25,D100,الدخول!$U$3:$U$25)+F100-SUMIF(الدخول!$B$3:$B$25,D100,الدخول!$N$3:$N$25)) -> 625 | J100: =IF(G100="","",SUMIF(الدخول!$B$3:$B$25,D100,الدخول!$I$3:$I$25)+SUMIF(الدخول!$B$3:$B$25,D100,الدخول!$V$3:$V$25)+G100-SUMIF(الدخول!$B$3:$B$25,D100,الدخول!$O$3:$O$25)) -> 
A101: اسود 510 | B101: كروشيه | C101: 3 cm | D101: اسود 510 كروشيه 3 cm | E101: 46.1 | F101: 3086 | H101: =IF(E101="","",SUMIF(الدخول!$B$3:$B$25,D101,الدخول!$F$3:$F$25)+SUMIF(الدخول!$B$3:$B$25,D101,الدخول!$S$3:$S$25)+E101-SUMIF(الدخول!$B$3:$B$25,D101,الدخول!$L$3:$L$25)) -> 46.1 | I101: =IF(F101="","",SUMIF(الدخول!$B$3:$B$25,D101,الدخول!$H$3:$H$25)+SUMIF(الدخول!$B$3:$B$25,D101,الدخول!$U$3:$U$25)+F101-SUMIF(الدخول!$B$3:$B$25,D101,الدخول!$N$3:$N$25)) -> 3086 | J101: =IF(G101="","",SUMIF(الدخول!$B$3:$B$25,D101,الدخول!$I$3:$I$25)+SUMIF(الدخول!$B$3:$B$25,D101,الدخول!$V$3:$V$25)+G101-SUMIF(الدخول!$B$3:$B$25,D101,الدخول!$O$3:$O$25)) -> 
A102: اسود 510 | B102: كروشيه | C102: 4.5cm | D102: اسود 510 كروشيه 4.5cm | E102: 46.1 | F102: 1970 | H102: =IF(E102="","",SUMIF(الدخول!$B$3:$B$25,D102,الدخول!$F$3:$F$25)+SUMIF(الدخول!$B$3:$B$25,D102,الدخول!$S$3:$S$25)+E102-SUMIF(الدخول!$B$3:$B$25,D102,الدخول!$L$3:$L$25)) -> 46.1 | I102: =IF(F102="","",SUMIF(الدخول!$B$3:$B$25,D102,الدخول!$H$3:$H$25)+SUMIF(الدخول!$B$3:$B$25,D102,الدخول!$U$3:$U$25)+F102-SUMIF(الدخول!$B$3:$B$25,D102,الدخول!$N$3:$N$25)) -> 1970 | J102: =IF(G102="","",SUMIF(الدخول!$B$3:$B$25,D102,الدخول!$I$3:$I$25)+SUMIF(الدخول!$B$3:$B$25,D102,الدخول!$V$3:$V$25)+G102-SUMIF(الدخول!$B$3:$B$25,D102,الدخول!$O$3:$O$25)) -> 
A103: اسود 510 | B103: كروشيه | C103: 4cm | D103: اسود 510 كروشيه 4cm | E103: 73.76 | F103: 3816 | H103: =IF(E103="","",SUMIF(الدخول!$B$3:$B$25,D103,الدخول!$F$3:$F$25)+SUMIF(الدخول!$B$3:$B$25,D103,الدخول!$S$3:$S$25)+E103-SUMIF(الدخول!$B$3:$B$25,D103,الدخول!$L$3:$L$25)) -> 73.76 | I103: =IF(F103="","",SUMIF(الدخول!$B$3:$B$25,D103,الدخول!$H$3:$H$25)+SUMIF(الدخول!$B$3:$B$25,D103,الدخول!$U$3:$U$25)+F103-SUMIF(الدخول!$B$3:$B$25,D103,الدخول!$N$3:$N$25)) -> 3816 | J103: =IF(G103="","",SUMIF(الدخول!$B$3:$B$25,D103,الدخول!$I$3:$I$25)+SUMIF(الدخول!$B$3:$B$25,D103,الدخول!$V$3:$V$25)+G103-SUMIF(الدخول!$B$3:$B$25,D103,الدخول!$O$3:$O$25)) -> 
A104: اسود 510 | B104: كروشيه | C104: 5.2cm | D104: اسود 510 كروشيه 5.2cm | E104: 9220 | F104: 416 | H104: =IF(E104="","",SUMIF(الدخول!$B$3:$B$25,D104,الدخول!$F$3:$F$25)+SUMIF(الدخول!$B$3:$B$25,D104,الدخول!$S$3:$S$25)+E104-SUMIF(الدخول!$B$3:$B$25,D104,الدخول!$L$3:$L$25)) -> 9220 | I104: =IF(F104="","",SUMIF(الدخول!$B$3:$B$25,D104,الدخول!$H$3:$H$25)+SUMIF(الدخول!$B$3:$B$25,D104,الدخول!$U$3:$U$25)+F104-SUMIF(الدخول!$B$3:$B$25,D104,الدخول!$N$3:$N$25)) -> 416 | J104: =IF(G104="","",SUMIF(الدخول!$B$3:$B$25,D104,الدخول!$I$3:$I$25)+SUMIF(الدخول!$B$3:$B$25,D104,الدخول!$V$3:$V$25)+G104-SUMIF(الدخول!$B$3:$B$25,D104,الدخول!$O$3:$O$25)) -> 
A105: اسود 510 | B105: كروشيه | C105: 5.5cm | D105: اسود 510 كروشيه 5.5cm | E105: 27.66 | F105: 1023 | H105: =IF(E105="","",SUMIF(الدخول!$B$3:$B$25,D105,الدخول!$F$3:$F$25)+SUMIF(الدخول!$B$3:$B$25,D105,الدخول!$S$3:$S$25)+E105-SUMIF(الدخول!$B$3:$B$25,D105,الدخول!$L$3:$L$25)) -> 27.66 | I105: =IF(F105="","",SUMIF(الدخول!$B$3:$B$25,D105,الدخول!$H$3:$H$25)+SUMIF(الدخول!$B$3:$B$25,D105,الدخول!$U$3:$U$25)+F105-SUMIF(الدخول!$B$3:$B$25,D105,الدخول!$N$3:$N$25)) -> 1023 | J105: =IF(G105="","",SUMIF(الدخول!$B$3:$B$25,D105,الدخول!$I$3:$I$25)+SUMIF(الدخول!$B$3:$B$25,D105,الدخول!$V$3:$V$25)+G105-SUMIF(الدخول!$B$3:$B$25,D105,الدخول!$O$3:$O$25)) -> 
A106: اسود 611.2 | B106: كروشيه | C106: 2cm | D106: اسود 611.2 كروشيه 2cm | E106: 519.52 | F106: 41561.6 | H106: =IF(E106="","",SUMIF(الدخول!$B$3:$B$25,D106,الدخول!$F$3:$F$25)+SUMIF(الدخول!$B$3:$B$25,D106,الدخول!$S$3:$S$25)+E106-SUMIF(الدخول!$B$3:$B$25,D106,الدخول!$L$3:$L$25)) -> 519.52 | I106: =IF(F106="","",SUMIF(الدخول!$B$3:$B$25,D106,الدخول!$H$3:$H$25)+SUMIF(الدخول!$B$3:$B$25,D106,الدخول!$U$3:$U$25)+F106-SUMIF(الدخول!$B$3:$B$25,D106,الدخول!$N$3:$N$25)) -> 41561.6 | J106: =IF(G106="","",SUMIF(الدخول!$B$3:$B$25,D106,الدخول!$I$3:$I$25)+SUMIF(الدخول!$B$3:$B$25,D106,الدخول!$V$3:$V$25)+G106-SUMIF(الدخول!$B$3:$B$25,D106,الدخول!$O$3:$O$25)) -> 
A107: اسود X ابيض | B107: بايبينج | C107: 1cm | D107: اسود X ابيض بايبينج 1cm | E107: 395.3 | F107: 54793 | H107: =IF(E107="","",SUMIF(الدخول!$B$3:$B$25,D107,الدخول!$F$3:$F$25)+SUMIF(الدخول!$B$3:$B$25,D107,الدخول!$S$3:$S$25)+E107-SUMIF(الدخول!$B$3:$B$25,D107,الدخول!$L$3:$L$25)) -> 395.3 | I107: =IF(F107="","",SUMIF(الدخول!$B$3:$B$25,D107,الدخول!$H$3:$H$25)+SUMIF(الدخول!$B$3:$B$25,D107,الدخول!$U$3:$U$25)+F107-SUMIF(الدخول!$B$3:$B$25,D107,الدخول!$N$3:$N$25)) -> 54793 | J107: =IF(G107="","",SUMIF(الدخول!$B$3:$B$25,D107,الدخول!$I$3:$I$25)+SUMIF(الدخول!$B$3:$B$25,D107,الدخول!$V$3:$V$25)+G107-SUMIF(الدخول!$B$3:$B$25,D107,الدخول!$O$3:$O$25)) -> 
A108: اسود استريب | B108: كروشيه | C108: 3cm | D108: اسود استريب كروشيه 3cm | E108: 414.9 | F108: 22500 | H108: =IF(E108="","",SUMIF(الدخول!$B$3:$B$25,D108,الدخول!$F$3:$F$25)+SUMIF(الدخول!$B$3:$B$25,D108,الدخول!$S$3:$S$25)+E108-SUMIF(الدخول!$B$3:$B$25,D108,الدخول!$L$3:$L$25)) -> 414.9 | I108: =IF(F108="","",SUMIF(الدخول!$B$3:$B$25,D108,الدخول!$H$3:$H$25)+SUMIF(الدخول!$B$3:$B$25,D108,الدخول!$U$3:$U$25)+F108-SUMIF(الدخول!$B$3:$B$25,D108,الدخول!$N$3:$N$25)) -> 22500 | J108: =IF(G108="","",SUMIF(الدخول!$B$3:$B$25,D108,الدخول!$I$3:$I$25)+SUMIF(الدخول!$B$3:$B$25,D108,الدخول!$V$3:$V$25)+G108-SUMIF(الدخول!$B$3:$B$25,D108,الدخول!$O$3:$O$25)) -> 
A109: اسود فلاش | B109: كروشيه | C109: 3.5cm | D109: اسود فلاش كروشيه 3.5cm | E109: 331.92 | F109: 15084 | H109: =IF(E109="","",SUMIF(الدخول!$B$3:$B$25,D109,الدخول!$F$3:$F$25)+SUMIF(الدخول!$B$3:$B$25,D109,الدخول!$S$3:$S$25)+E109-SUMIF(الدخول!$B$3:$B$25,D109,الدخول!$L$3:$L$25)) -> 331.92 | I109: =IF(F109="","",SUMIF(الدخول!$B$3:$B$25,D109,الدخول!$H$3:$H$25)+SUMIF(الدخول!$B$3:$B$25,D109,الدخول!$U$3:$U$25)+F109-SUMIF(الدخول!$B$3:$B$25,D109,الدخول!$N$3:$N$25)) -> 15084 | J109: =IF(G109="","",SUMIF(الدخول!$B$3:$B$25,D109,الدخول!$I$3:$I$25)+SUMIF(الدخول!$B$3:$B$25,D109,الدخول!$V$3:$V$25)+G109-SUMIF(الدخول!$B$3:$B$25,D109,الدخول!$O$3:$O$25)) -> 
A110: اسود فلاش | B110: كروشيه | C110: 5.5cm | D110: اسود فلاش كروشيه 5.5cm | E110: 239.72 | F110: 7150 | H110: =IF(E110="","",SUMIF(الدخول!$B$3:$B$25,D110,الدخول!$F$3:$F$25)+SUMIF(الدخول!$B$3:$B$25,D110,الدخول!$S$3:$S$25)+E110-SUMIF(الدخول!$B$3:$B$25,D110,الدخول!$L$3:$L$25)) -> 239.72 | I110: =IF(F110="","",SUMIF(الدخول!$B$3:$B$25,D110,الدخول!$H$3:$H$25)+SUMIF(الدخول!$B$3:$B$25,D110,الدخول!$U$3:$U$25)+F110-SUMIF(الدخول!$B$3:$B$25,D110,الدخول!$N$3:$N$25)) -> 7150 | J110: =IF(G110="","",SUMIF(الدخول!$B$3:$B$25,D110,الدخول!$I$3:$I$25)+SUMIF(الدخول!$B$3:$B$25,D110,الدخول!$V$3:$V$25)+G110-SUMIF(الدخول!$B$3:$B$25,D110,الدخول!$O$3:$O$25)) -> 
A111: اسود فلاش | B111: كروشيه | C111: 5cm | D111: اسود فلاش كروشيه 5cm | E111: 101.42 | F111: 3267 | H111: =IF(E111="","",SUMIF(الدخول!$B$3:$B$25,D111,الدخول!$F$3:$F$25)+SUMIF(الدخول!$B$3:$B$25,D111,الدخول!$S$3:$S$25)+E111-SUMIF(الدخول!$B$3:$B$25,D111,الدخول!$L$3:$L$25)) -> 101.42 | I111: =IF(F111="","",SUMIF(الدخول!$B$3:$B$25,D111,الدخول!$H$3:$H$25)+SUMIF(الدخول!$B$3:$B$25,D111,الدخول!$U$3:$U$25)+F111-SUMIF(الدخول!$B$3:$B$25,D111,الدخول!$N$3:$N$25)) -> 3267 | J111: =IF(G111="","",SUMIF(الدخول!$B$3:$B$25,D111,الدخول!$I$3:$I$25)+SUMIF(الدخول!$B$3:$B$25,D111,الدخول!$V$3:$V$25)+G111-SUMIF(الدخول!$B$3:$B$25,D111,الدخول!$O$3:$O$25)) -> 
A112: اسود510 | B112: كروشيه | C112: 3.5cm | D112: اسود510 كروشيه 3.5cm | E112: 18.44 | F112: 1118 | H112: =IF(E112="","",SUMIF(الدخول!$B$3:$B$25,D112,الدخول!$F$3:$F$25)+SUMIF(الدخول!$B$3:$B$25,D112,الدخول!$S$3:$S$25)+E112-SUMIF(الدخول!$B$3:$B$25,D112,الدخول!$L$3:$L$25)) -> 18.44 | I112: =IF(F112="","",SUMIF(الدخول!$B$3:$B$25,D112,الدخول!$H$3:$H$25)+SUMIF(الدخول!$B$3:$B$25,D112,الدخول!$U$3:$U$25)+F112-SUMIF(الدخول!$B$3:$B$25,D112,الدخول!$N$3:$N$25)) -> 1118 | J112: =IF(G112="","",SUMIF(الدخول!$B$3:$B$25,D112,الدخول!$I$3:$I$25)+SUMIF(الدخول!$B$3:$B$25,D112,الدخول!$V$3:$V$25)+G112-SUMIF(الدخول!$B$3:$B$25,D112,الدخول!$O$3:$O$25)) -> 
A113: اسود510 | B113: كروشيه | C113: 5cm | D113: اسود510 كروشيه 5cm | H113: =IF(E113="","",SUMIF(الدخول!$B$3:$B$25,D113,الدخول!$F$3:$F$25)+SUMIF(الدخول!$B$3:$B$25,D113,الدخول!$S$3:$S$25)+E113-SUMIF(الدخول!$B$3:$B$25,D113,الدخول!$L$3:$L$25)) ->  | I113: =IF(F113="","",SUMIF(الدخول!$B$3:$B$25,D113,الدخول!$H$3:$H$25)+SUMIF(الدخول!$B$3:$B$25,D113,الدخول!$U$3:$U$25)+F113-SUMIF(الدخول!$B$3:$B$25,D113,الدخول!$N$3:$N$25)) ->  | J113: =IF(G113="","",SUMIF(الدخول!$B$3:$B$25,D113,الدخول!$I$3:$I$25)+SUMIF(الدخول!$B$3:$B$25,D113,الدخول!$V$3:$V$25)+G113-SUMIF(الدخول!$B$3:$B$25,D113,الدخول!$O$3:$O$25)) -> 
A114: اصفر X اخضر | B114: بايبينج | C114: 1cm | D114: اصفر X اخضر بايبينج 1cm | E114: 5.4 | F114: 1080 | H114: =IF(E114="","",SUMIF(الدخول!$B$3:$B$25,D114,الدخول!$F$3:$F$25)+SUMIF(الدخول!$B$3:$B$25,D114,الدخول!$S$3:$S$25)+E114-SUMIF(الدخول!$B$3:$B$25,D114,الدخول!$L$3:$L$25)) -> 5.4 | I114: =IF(F114="","",SUMIF(الدخول!$B$3:$B$25,D114,الدخول!$H$3:$H$25)+SUMIF(الدخول!$B$3:$B$25,D114,الدخول!$U$3:$U$25)+F114-SUMIF(الدخول!$B$3:$B$25,D114,الدخول!$N$3:$N$25)) -> 1080 | J114: =IF(G114="","",SUMIF(الدخول!$B$3:$B$25,D114,الدخول!$I$3:$I$25)+SUMIF(الدخول!$B$3:$B$25,D114,الدخول!$V$3:$V$25)+G114-SUMIF(الدخول!$B$3:$B$25,D114,الدخول!$O$3:$O$25)) -> 
A115: اصفر X زيتي | B115: بايبينج | C115: 1cm | D115: اصفر X زيتي بايبينج 1cm | E115: 67.9 | F115: 13580 | H115: =IF(E115="","",SUMIF(الدخول!$B$3:$B$25,D115,الدخول!$F$3:$F$25)+SUMIF(الدخول!$B$3:$B$25,D115,الدخول!$S$3:$S$25)+E115-SUMIF(الدخول!$B$3:$B$25,D115,الدخول!$L$3:$L$25)) -> 67.9 | I115: =IF(F115="","",SUMIF(الدخول!$B$3:$B$25,D115,الدخول!$H$3:$H$25)+SUMIF(الدخول!$B$3:$B$25,D115,الدخول!$U$3:$U$25)+F115-SUMIF(الدخول!$B$3:$B$25,D115,الدخول!$N$3:$N$25)) -> 13580 | J115: =IF(G115="","",SUMIF(الدخول!$B$3:$B$25,D115,الدخول!$I$3:$I$25)+SUMIF(الدخول!$B$3:$B$25,D115,الدخول!$V$3:$V$25)+G115-SUMIF(الدخول!$B$3:$B$25,D115,الدخول!$O$3:$O$25)) -> 
A116: الالوان | B116: كورد | C116: 1.2cm | D116: الالوان كورد 1.2cm | H116: =IF(E116="","",SUMIF(الدخول!$B$3:$B$25,D116,الدخول!$F$3:$F$25)+SUMIF(الدخول!$B$3:$B$25,D116,الدخول!$S$3:$S$25)+E116-SUMIF(الدخول!$B$3:$B$25,D116,الدخول!$L$3:$L$25)) ->  | I116: =IF(F116="","",SUMIF(الدخول!$B$3:$B$25,D116,الدخول!$H$3:$H$25)+SUMIF(الدخول!$B$3:$B$25,D116,الدخول!$U$3:$U$25)+F116-SUMIF(الدخول!$B$3:$B$25,D116,الدخول!$N$3:$N$25)) ->  | J116: =IF(G116="","",SUMIF(الدخول!$B$3:$B$25,D116,الدخول!$I$3:$I$25)+SUMIF(الدخول!$B$3:$B$25,D116,الدخول!$V$3:$V$25)+G116-SUMIF(الدخول!$B$3:$B$25,D116,الدخول!$O$3:$O$25)) -> 
A117: الوان | B117: فيستون | C117: 1cm | D117: الوان فيستون 1cm | E117: 190 | H117: =IF(E117="","",SUMIF(الدخول!$B$3:$B$25,D117,الدخول!$F$3:$F$25)+SUMIF(الدخول!$B$3:$B$25,D117,الدخول!$S$3:$S$25)+E117-SUMIF(الدخول!$B$3:$B$25,D117,الدخول!$L$3:$L$25)) -> 190 | I117: =IF(F117="","",SUMIF(الدخول!$B$3:$B$25,D117,الدخول!$H$3:$H$25)+SUMIF(الدخول!$B$3:$B$25,D117,الدخول!$U$3:$U$25)+F117-SUMIF(الدخول!$B$3:$B$25,D117,الدخول!$N$3:$N$25)) ->  | J117: =IF(G117="","",SUMIF(الدخول!$B$3:$B$25,D117,الدخول!$I$3:$I$25)+SUMIF(الدخول!$B$3:$B$25,D117,الدخول!$V$3:$V$25)+G117-SUMIF(الدخول!$B$3:$B$25,D117,الدخول!$O$3:$O$25)) -> 
A118: اورنج | B118: كورد | C118: 1.2cm | D118: اورنج كورد 1.2cm | H118: =IF(E118="","",SUMIF(الدخول!$B$3:$B$25,D118,الدخول!$F$3:$F$25)+SUMIF(الدخول!$B$3:$B$25,D118,الدخول!$S$3:$S$25)+E118-SUMIF(الدخول!$B$3:$B$25,D118,الدخول!$L$3:$L$25)) ->  | I118: =IF(F118="","",SUMIF(الدخول!$B$3:$B$25,D118,الدخول!$H$3:$H$25)+SUMIF(الدخول!$B$3:$B$25,D118,الدخول!$U$3:$U$25)+F118-SUMIF(الدخول!$B$3:$B$25,D118,الدخول!$N$3:$N$25)) ->  | J118: =IF(G118="","",SUMIF(الدخول!$B$3:$B$25,D118,الدخول!$I$3:$I$25)+SUMIF(الدخول!$B$3:$B$25,D118,الدخول!$V$3:$V$25)+G118-SUMIF(الدخول!$B$3:$B$25,D118,الدخول!$O$3:$O$25)) -> 
A119: اورنح | B119: كورد | C119: مبطط | D119: اورنح كورد مبطط | H119: =IF(E119="","",SUMIF(الدخول!$B$3:$B$25,D119,الدخول!$F$3:$F$25)+SUMIF(الدخول!$B$3:$B$25,D119,الدخول!$S$3:$S$25)+E119-SUMIF(الدخول!$B$3:$B$25,D119,الدخول!$L$3:$L$25)) ->  | I119: =IF(F119="","",SUMIF(الدخول!$B$3:$B$25,D119,الدخول!$H$3:$H$25)+SUMIF(الدخول!$B$3:$B$25,D119,الدخول!$U$3:$U$25)+F119-SUMIF(الدخول!$B$3:$B$25,D119,الدخول!$N$3:$N$25)) ->  | J119: =IF(G119="","",SUMIF(الدخول!$B$3:$B$25,D119,الدخول!$I$3:$I$25)+SUMIF(الدخول!$B$3:$B$25,D119,الدخول!$V$3:$V$25)+G119-SUMIF(الدخول!$B$3:$B$25,D119,الدخول!$O$3:$O$25)) -> 
A120: بنك X اسود | B120: بايبينج | C120: 1cm | D120: بنك X اسود بايبينج 1cm | E120: 35.9 | F120: 5980 | H120: =IF(E120="","",SUMIF(الدخول!$B$3:$B$25,D120,الدخول!$F$3:$F$25)+SUMIF(الدخول!$B$3:$B$25,D120,الدخول!$S$3:$S$25)+E120-SUMIF(الدخول!$B$3:$B$25,D120,الدخول!$L$3:$L$25)) -> 35.9 | I120: =IF(F120="","",SUMIF(الدخول!$B$3:$B$25,D120,الدخول!$H$3:$H$25)+SUMIF(الدخول!$B$3:$B$25,D120,الدخول!$U$3:$U$25)+F120-SUMIF(الدخول!$B$3:$B$25,D120,الدخول!$N$3:$N$25)) -> 5980 | J120: =IF(G120="","",SUMIF(الدخول!$B$3:$B$25,D120,الدخول!$I$3:$I$25)+SUMIF(الدخول!$B$3:$B$25,D120,الدخول!$V$3:$V$25)+G120-SUMIF(الدخول!$B$3:$B$25,D120,الدخول!$O$3:$O$25)) -> 
A121: بنك X زيتي | B121: بايبينج | C121: 1cm | D121: بنك X زيتي بايبينج 1cm | E121: 14.11 | F121: 2820 | H121: =IF(E121="","",SUMIF(الدخول!$B$3:$B$25,D121,الدخول!$F$3:$F$25)+SUMIF(الدخول!$B$3:$B$25,D121,الدخول!$S$3:$S$25)+E121-SUMIF(الدخول!$B$3:$B$25,D121,الدخول!$L$3:$L$25)) -> 14.11 | I121: =IF(F121="","",SUMIF(الدخول!$B$3:$B$25,D121,الدخول!$H$3:$H$25)+SUMIF(الدخول!$B$3:$B$25,D121,الدخول!$U$3:$U$25)+F121-SUMIF(الدخول!$B$3:$B$25,D121,الدخول!$N$3:$N$25)) -> 2820 | J121: =IF(G121="","",SUMIF(الدخول!$B$3:$B$25,D121,الدخول!$I$3:$I$25)+SUMIF(الدخول!$B$3:$B$25,D121,الدخول!$V$3:$V$25)+G121-SUMIF(الدخول!$B$3:$B$25,D121,الدخول!$O$3:$O$25)) -> 
A122: بينك | B122: ووفين فستون | C122: 1.3cm | D122: بينك ووفين فستون 1.3cm | H122: =IF(E122="","",SUMIF(الدخول!$B$3:$B$25,D122,الدخول!$F$3:$F$25)+SUMIF(الدخول!$B$3:$B$25,D122,الدخول!$S$3:$S$25)+E122-SUMIF(الدخول!$B$3:$B$25,D122,الدخول!$L$3:$L$25)) ->  | I122: =IF(F122="","",SUMIF(الدخول!$B$3:$B$25,D122,الدخول!$H$3:$H$25)+SUMIF(الدخول!$B$3:$B$25,D122,الدخول!$U$3:$U$25)+F122-SUMIF(الدخول!$B$3:$B$25,D122,الدخول!$N$3:$N$25)) ->  | J122: =IF(G122="","",SUMIF(الدخول!$B$3:$B$25,D122,الدخول!$I$3:$I$25)+SUMIF(الدخول!$B$3:$B$25,D122,الدخول!$V$3:$V$25)+G122-SUMIF(الدخول!$B$3:$B$25,D122,الدخول!$O$3:$O$25)) -> 
A123: بينك | B123: ووفين فستون | C123: 1cm | D123: بينك ووفين فستون 1cm | H123: =IF(E123="","",SUMIF(الدخول!$B$3:$B$25,D123,الدخول!$F$3:$F$25)+SUMIF(الدخول!$B$3:$B$25,D123,الدخول!$S$3:$S$25)+E123-SUMIF(الدخول!$B$3:$B$25,D123,الدخول!$L$3:$L$25)) ->  | I123: =IF(F123="","",SUMIF(الدخول!$B$3:$B$25,D123,الدخول!$H$3:$H$25)+SUMIF(الدخول!$B$3:$B$25,D123,الدخول!$U$3:$U$25)+F123-SUMIF(الدخول!$B$3:$B$25,D123,الدخول!$N$3:$N$25)) ->  | J123: =IF(G123="","",SUMIF(الدخول!$B$3:$B$25,D123,الدخول!$I$3:$I$25)+SUMIF(الدخول!$B$3:$B$25,D123,الدخول!$V$3:$V$25)+G123-SUMIF(الدخول!$B$3:$B$25,D123,الدخول!$O$3:$O$25)) -> 
A124: تركواز X ابيض | B124: بايبينج | C124: 1cm | D124: تركواز X ابيض بايبينج 1cm | E124: 119.56 | F124: 16296 | H124: =IF(E124="","",SUMIF(الدخول!$B$3:$B$25,D124,الدخول!$F$3:$F$25)+SUMIF(الدخول!$B$3:$B$25,D124,الدخول!$S$3:$S$25)+E124-SUMIF(الدخول!$B$3:$B$25,D124,الدخول!$L$3:$L$25)) -> 119.56 | I124: =IF(F124="","",SUMIF(الدخول!$B$3:$B$25,D124,الدخول!$H$3:$H$25)+SUMIF(الدخول!$B$3:$B$25,D124,الدخول!$U$3:$U$25)+F124-SUMIF(الدخول!$B$3:$B$25,D124,الدخول!$N$3:$N$25)) -> 16296 | J124: =IF(G124="","",SUMIF(الدخول!$B$3:$B$25,D124,الدخول!$I$3:$I$25)+SUMIF(الدخول!$B$3:$B$25,D124,الدخول!$V$3:$V$25)+G124-SUMIF(الدخول!$B$3:$B$25,D124,الدخول!$O$3:$O$25)) -> 
A125: تركواز X اسود | B125: بايبينج | C125: 1cm | D125: تركواز X اسود بايبينج 1cm | E125: 5511.45 | F125: 9564 | H125: =IF(E125="","",SUMIF(الدخول!$B$3:$B$25,D125,الدخول!$F$3:$F$25)+SUMIF(الدخول!$B$3:$B$25,D125,الدخول!$S$3:$S$25)+E125-SUMIF(الدخول!$B$3:$B$25,D125,الدخول!$L$3:$L$25)) -> 5511.45 | I125: =IF(F125="","",SUMIF(الدخول!$B$3:$B$25,D125,الدخول!$H$3:$H$25)+SUMIF(الدخول!$B$3:$B$25,D125,الدخول!$U$3:$U$25)+F125-SUMIF(الدخول!$B$3:$B$25,D125,الدخول!$N$3:$N$25)) -> 9564 | J125: =IF(G125="","",SUMIF(الدخول!$B$3:$B$25,D125,الدخول!$I$3:$I$25)+SUMIF(الدخول!$B$3:$B$25,D125,الدخول!$V$3:$V$25)+G125-SUMIF(الدخول!$B$3:$B$25,D125,الدخول!$O$3:$O$25)) -> 
A126: رصاصي استريب | B126: كروشيه | C126: 3cm | D126: رصاصي استريب كروشيه 3cm | E126: 175.18 | F126: 10127 | H126: =IF(E126="","",SUMIF(الدخول!$B$3:$B$25,D126,الدخول!$F$3:$F$25)+SUMIF(الدخول!$B$3:$B$25,D126,الدخول!$S$3:$S$25)+E126-SUMIF(الدخول!$B$3:$B$25,D126,الدخول!$L$3:$L$25)) -> 175.18 | I126: =IF(F126="","",SUMIF(الدخول!$B$3:$B$25,D126,الدخول!$H$3:$H$25)+SUMIF(الدخول!$B$3:$B$25,D126,الدخول!$U$3:$U$25)+F126-SUMIF(الدخول!$B$3:$B$25,D126,الدخول!$N$3:$N$25)) -> 10127 | J126: =IF(G126="","",SUMIF(الدخول!$B$3:$B$25,D126,الدخول!$I$3:$I$25)+SUMIF(الدخول!$B$3:$B$25,D126,الدخول!$V$3:$V$25)+G126-SUMIF(الدخول!$B$3:$B$25,D126,الدخول!$O$3:$O$25)) -> 
A127: زهري | B127: كورد | C127: مبطط | D127: زهري كورد مبطط | H127: =IF(E127="","",SUMIF(الدخول!$B$3:$B$25,D127,الدخول!$F$3:$F$25)+SUMIF(الدخول!$B$3:$B$25,D127,الدخول!$S$3:$S$25)+E127-SUMIF(الدخول!$B$3:$B$25,D127,الدخول!$L$3:$L$25)) ->  | I127: =IF(F127="","",SUMIF(الدخول!$B$3:$B$25,D127,الدخول!$H$3:$H$25)+SUMIF(الدخول!$B$3:$B$25,D127,الدخول!$U$3:$U$25)+F127-SUMIF(الدخول!$B$3:$B$25,D127,الدخول!$N$3:$N$25)) ->  | J127: =IF(G127="","",SUMIF(الدخول!$B$3:$B$25,D127,الدخول!$I$3:$I$25)+SUMIF(الدخول!$B$3:$B$25,D127,الدخول!$V$3:$V$25)+G127-SUMIF(الدخول!$B$3:$B$25,D127,الدخول!$O$3:$O$25)) -> 
A128: شاركول | B128: كورد | C128: مبطط | D128: شاركول كورد مبطط | H128: =IF(E128="","",SUMIF(الدخول!$B$3:$B$25,D128,الدخول!$F$3:$F$25)+SUMIF(الدخول!$B$3:$B$25,D128,الدخول!$S$3:$S$25)+E128-SUMIF(الدخول!$B$3:$B$25,D128,الدخول!$L$3:$L$25)) ->  | I128: =IF(F128="","",SUMIF(الدخول!$B$3:$B$25,D128,الدخول!$H$3:$H$25)+SUMIF(الدخول!$B$3:$B$25,D128,الدخول!$U$3:$U$25)+F128-SUMIF(الدخول!$B$3:$B$25,D128,الدخول!$N$3:$N$25)) ->  | J128: =IF(G128="","",SUMIF(الدخول!$B$3:$B$25,D128,الدخول!$I$3:$I$25)+SUMIF(الدخول!$B$3:$B$25,D128,الدخول!$V$3:$V$25)+G128-SUMIF(الدخول!$B$3:$B$25,D128,الدخول!$O$3:$O$25)) -> 
A129: موف غامق | B129: كروشيه | C129: 1.6cm | D129: موف غامق كروشيه 1.6cm | H129: =IF(E129="","",SUMIF(الدخول!$B$3:$B$25,D129,الدخول!$F$3:$F$25)+SUMIF(الدخول!$B$3:$B$25,D129,الدخول!$S$3:$S$25)+E129-SUMIF(الدخول!$B$3:$B$25,D129,الدخول!$L$3:$L$25)) ->  | I129: =IF(F129="","",SUMIF(الدخول!$B$3:$B$25,D129,الدخول!$H$3:$H$25)+SUMIF(الدخول!$B$3:$B$25,D129,الدخول!$U$3:$U$25)+F129-SUMIF(الدخول!$B$3:$B$25,D129,الدخول!$N$3:$N$25)) ->  | J129: =IF(G129="","",SUMIF(الدخول!$B$3:$B$25,D129,الدخول!$I$3:$I$25)+SUMIF(الدخول!$B$3:$B$25,D129,الدخول!$V$3:$V$25)+G129-SUMIF(الدخول!$B$3:$B$25,D129,الدخول!$O$3:$O$25)) -> 

Sheet الدخول
A1: التاريخ | B1: اللون | C1: رصيد ختامي بالكيلو | D1: رصيد ختامي بالمتر | E1: رصيد ختامي بالقطع | F1: أضافة | H1: وزن المتر | I1: اجمالي القطع | J1: رقم اذن اضافة | K1: العميل | L1: صرف | N1: وزن المتر | O1: اجمالي القطع | P1: رقم اذن صرف | Q1: جرد | R1: العميل | S1: مرتجع | U1: وزن المتر | V1: اجمالي القطع | W1: رقم اذن المرتجع | X1: العميل | Y1: ملاحظات
F2: كيلو | G2: متر | L2: كيلو | M2: متر | S2: كيلو | T2: متر | AA2: ابيض استك طبي 2.58 | AC2: ابيض كروشيه 5.8cm | AD2: ابيض كروشيه 5.8cm
A3: 2023-07-18T13:46:23 | B3: ابيض كروشيه 3.5cm | C3: =IF(B3="","",SUMIF('الرصيد الثابت'!$D$2:$D$129,B3,'الرصيد الثابت'!$H$2:$H$129)) -> 5665.3 | D3: =IF(B3="","",SUMIF('الرصيد الثابت'!$D$2:$D$129,B3,'الرصيد الثابت'!$I$2:$I$129)) -> 298273 | E3: =IF(B3="","",SUMIF('الرصيد الثابت'!$D$2:$D$129,B3,'الرصيد الثابت'!$J$2:$J$129)) -> 0 | G3: =SUM(H3*F3) -> 0 | L3: 5 | M3: =SUM(N3*L3) -> 10 | N3: 2 | P3: 11 | R3: محمود | T3: =SUM(U3*S3) -> 0 | AA3: ابيض استك طبي 2.78 | AC3: ابيض كروشيه 5.5cm | AD3: ابيض كروشيه 5.5cm
A4: 2023-07-18T13:46:33 | B4: ابيض كروشيه 3cm | C4: =IF(B4="","",SUMIF('الرصيد الثابت'!$D$2:$D$129,B4,'الرصيد الثابت'!$H$2:$H$129)) -> 40003.7 | D4: =IF(B4="","",SUMIF('الرصيد الثابت'!$D$2:$D$129,B4,'الرصيد الثابت'!$I$2:$I$129)) -> 242728 | E4: =IF(B4="","",SUMIF('الرصيد الثابت'!$D$2:$D$129,B4,'الرصيد الثابت'!$J$2:$J$129)) -> 0 | G4: 0 | L4: 7 | M4: 14 | N4: 2 | P4: 11 | R4: محمود | T4: =SUM(U4*S4) -> 0 | AA4: ابيض استك طبي 3.02 | AC4: ابيض كروشيه 5.3cm | AD4: ابيض كروشيه 5.3cm
A5: 2023-07-18T13:47:03 | B5: ابيض كروشيه 5cm | C5: =IF(B5="","",SUMIF('الرصيد الثابت'!$D$2:$D$129,B5,'الرصيد الثابت'!$H$2:$H$129)) -> 859.1 | D5: =IF(B5="","",SUMIF('الرصيد الثابت'!$D$2:$D$129,B5,'الرصيد الثابت'!$I$2:$I$129)) -> 34542 | E5: =IF(B5="","",SUMIF('الرصيد الثابت'!$D$2:$D$129,B5,'الرصيد الثابت'!$J$2:$J$129)) -> 0 | G5: 0 | L5: 9 | M5: 27 | N5: 3 | P5: 11 | R5: محمود | T5: =SUM(U5*S5) -> 0 | AA5: ابيض استك طبي 3.18 | AC5: ابيض كروشيه 5cm | AD5: ابيض كروشيه 5cm
A6: 2023-07-18T13:47:09 | B6: ابيض كروشيه 1.2cm | C6: =IF(B6="","",SUMIF('الرصيد الثابت'!$D$2:$D$129,B6,'الرصيد الثابت'!$H$2:$H$129)) -> 5.64 | D6: =IF(B6="","",SUMIF('الرصيد الثابت'!$D$2:$D$129,B6,'الرصيد الثابت'!$I$2:$I$129)) -> 684 | E6: =IF(B6="","",SUMIF('الرصيد الثابت'!$D$2:$D$129,B6,'الرصيد الثابت'!$J$2:$J$129)) -> 0 | G6: 0 | L6: 2 | M6: 4 | N6: 2 | P6: 12 | R6: سعيد | T6: =SUM(U6*S6) -> 0 | AA6: ابيض استك طبي 3.3 | AC6: ابيض كروشيه 4.5cm | AD6: ابيض كروشيه 4.5cm
A7: 2023-07-18T13:47:13 | B7: ابيض كروشيه 8mm | C7: =IF(B7="","",SUMIF('الرصيد الثابت'!$D$2:$D$129,B7,'الرصيد الثابت'!$H$2:$H$129)) -> 3.84 | D7: =IF(B7="","",SUMIF('الرصيد الثابت'!$D$2:$D$129,B7,'الرصيد الثابت'!$I$2:$I$129)) -> 1165 | E7: =IF(B7="","",SUMIF('الرصيد الثابت'!$D$2:$D$129,B7,'الرصيد الثابت'!$J$2:$J$129)) -> 0 | G7: 0 | L7: 2 | M7: 6 | N7: 3 | P7: 12 | R7: سعيد | T7: =SUM(U7*S7) -> 0 | AA7: ابيض استك طبي 3.36 | AC7: ابيض كروشيه 4cm | AD7: ابيض كروشيه 4cm
C8: =IF(B8="","",SUMIF('الرصيد الثابت'!$D$2:$D$129,B8,'الرصيد الثابت'!$H$2:$H$129)) ->  | D8: =IF(B8="","",SUMIF('الرصيد الثابت'!$D$2:$D$129,B8,'الرصيد الثابت'!$I$2:$I$129)) ->  | E8: =IF(B8="","",SUMIF('الرصيد الثابت'!$D$2:$D$129,B8,'الرصيد الثابت'!$J$2:$J$129)) ->  | G8: 0 | M8: 0 | T8: =SUM(U8*S8) -> 0 | AA8: ابيض استك طبي 3.5 | AC8: ابيض كروشيه 3.5cm | AD8: ابيض كروشيه 3.5cm
C9: =IF(B9="","",SUMIF('الرصيد الثابت'!$D$2:$D$129,B9,'الرصيد الثابت'!$H$2:$H$129)) ->  | D9: =IF(B9="","",SUMIF('الرصيد الثابت'!$D$2:$D$129,B9,'الرصيد الثابت'!$I$2:$I$129)) ->  | E9: =IF(B9="","",SUMIF('الرصيد الثابت'!$D$2:$D$129,B9,'الرصيد الثابت'!$J$2:$J$129)) ->  | G9: 0 | M9: 0 | T9: 0 | AA9: ابيض استك طبي 4.14 | AC9: ابيض كروشيه 3.2cm | AD9: ابيض كروشيه 3.2cm
C10: =IF(B10="","",SUMIF('الرصيد الثابت'!$D$2:$D$129,B10,'الرصيد الثابت'!$H$2:$H$129)) ->  | D10: =IF(B10="","",SUMIF('الرصيد الثابت'!$D$2:$D$129,B10,'الرصيد الثابت'!$I$2:$I$129)) ->  | E10: =IF(B10="","",SUMIF('الرصيد الثابت'!$D$2:$D$129,B10,'الرصيد الثابت'!$J$2:$J$129)) ->  | G10: 0 | M10: 0 | T10: 0 | AA10: ابيض استك طبي 4.92 | AC10: ابيض كروشيه 3cm | AD10: ابيض كروشيه 3cm
C11: =IF(B11="","",SUMIF('الرصيد الثابت'!$D$2:$D$129,B11,'الرصيد الثابت'!$H$2:$H$129)) ->  | D11: =IF(B11="","",SUMIF('الرصيد الثابت'!$D$2:$D$129,B11,'الرصيد الثابت'!$I$2:$I$129)) ->  | E11: =IF(B11="","",SUMIF('الرصيد الثابت'!$D$2:$D$129,B11,'الرصيد الثابت'!$J$2:$J$129)) ->  | G11: 0 | M11: 0 | Q11: =SUM(F11-L11) -> 0 | T11: 0 | AA11: ابيض استك طبي 7.52 | AC11: ابيض كروشيه 2.2cm | AD11: ابيض كروشيه 2.2cm
C12: =IF(B12="","",SUMIF('الرصيد الثابت'!$D$2:$D$129,B12,'الرصيد الثابت'!$H$2:$H$129)) ->  | D12: =IF(B12="","",SUMIF('الرصيد الثابت'!$D$2:$D$129,B12,'الرصيد الثابت'!$I$2:$I$129)) ->  | E12: =IF(B12="","",SUMIF('الرصيد الثابت'!$D$2:$D$129,B12,'الرصيد الثابت'!$J$2:$J$129)) ->  | G12: 0 | M12: 0 | Q12: 0 | T12: 0 | AA12: ابيض كروشيه 1.2cm | AC12: ابيض كروشيه 2cm | AD12: ابيض كروشيه 2cm
C13: =IF(B13="","",SUMIF('الرصيد الثابت'!$D$2:$D$129,B13,'الرصيد الثابت'!$H$2:$H$129)) ->  | D13: =IF(B13="","",SUMIF('الرصيد الثابت'!$D$2:$D$129,B13,'الرصيد الثابت'!$I$2:$I$129)) ->  | E13: =IF(B13="","",SUMIF('الرصيد الثابت'!$D$2:$D$129,B13,'الرصيد الثابت'!$J$2:$J$129)) ->  | G13: 0 | M13: 0 | Q13: 0 | T13: 0 | AA13: ابيض كروشيه 1.3cm | AC13: ابيض كروشيه 1.5cm | AD13: ابيض كروشيه 1.5cm
C14: =IF(B14="","",SUMIF('الرصيد الثابت'!$D$2:$D$129,B14,'الرصيد الثابت'!$H$2:$H$129)) ->  | D14: =IF(B14="","",SUMIF('الرصيد الثابت'!$D$2:$D$129,B14,'الرصيد الثابت'!$I$2:$I$129)) ->  | E14: =IF(B14="","",SUMIF('الرصيد الثابت'!$D$2:$D$129,B14,'الرصيد الثابت'!$J$2:$J$129)) ->  | G14: 0 | M14: 0 | Q14: 0 | T14: 0 | AA14: ابيض كروشيه 1.5cm | AC14: ابيض كروشيه 1.2cm | AD14: ابيض كروشيه 1.2cm
C15: =IF(B15="","",SUMIF('الرصيد الثابت'!$D$2:$D$129,B15,'الرصيد الثابت'!$H$2:$H$129)) ->  | D15: =IF(B15="","",SUMIF('الرصيد الثابت'!$D$2:$D$129,B15,'الرصيد الثابت'!$I$2:$I$129)) ->  | E15: =IF(B15="","",SUMIF('الرصيد الثابت'!$D$2:$D$129,B15,'الرصيد الثابت'!$J$2:$J$129)) ->  | G15: 0 | M15: 0 | Q15: 0 | T15: 0 | AA15: ابيض كروشيه 1.6cm | AC15: ابيض كروشيه 1cm | AD15: ابيض كروشيه 1cm
C16: =IF(B16="","",SUMIF('الرصيد الثابت'!$D$2:$D$129,B16,'الرصيد الثابت'!$H$2:$H$129)) ->  | D16: =IF(B16="","",SUMIF('الرصيد الثابت'!$D$2:$D$129,B16,'الرصيد الثابت'!$I$2:$I$129)) ->  | E16: =IF(B16="","",SUMIF('الرصيد الثابت'!$D$2:$D$129,B16,'الرصيد الثابت'!$J$2:$J$129)) ->  | G16: 0 | M16: 0 | Q16: 0 | T16: 0 | AA16: ابيض كروشيه 1.8cm | AC16: ابيض كروشيه 8mm | AD16: ابيض كروشيه 8mm
C17: =IF(B17="","",SUMIF('الرصيد الثابت'!$D$2:$D$129,B17,'الرصيد الثابت'!$H$2:$H$129)) ->  | D17: =IF(B17="","",SUMIF('الرصيد الثابت'!$D$2:$D$129,B17,'الرصيد الثابت'!$I$2:$I$129)) ->  | E17: =IF(B17="","",SUMIF('الرصيد الثابت'!$D$2:$D$129,B17,'الرصيد الثابت'!$J$2:$J$129)) ->  | G17: 0 | M17: 0 | Q17: 0 | T17: 0 | AA17: ابيض كروشيه 1cm | AC17: ابيض كروشيه 7mm | AD17: ابيض كروشيه 7mm
C18: =IF(B18="","",SUMIF('الرصيد الثابت'!$D$2:$D$129,B18,'الرصيد الثابت'!$H$2:$H$129)) ->  | D18: =IF(B18="","",SUMIF('الرصيد الثابت'!$D$2:$D$129,B18,'الرصيد الثابت'!$I$2:$I$129)) ->  | E18: =IF(B18="","",SUMIF('الرصيد الثابت'!$D$2:$D$129,B18,'الرصيد الثابت'!$J$2:$J$129)) ->  | G18: 0 | M18: 0 | Q18: 0 | T18: 0 | AA18: ابيض كروشيه 2.2cm | AC18: ابيض كروشيه 6mm | AD18: ابيض كروشيه 6mm
C19: =IF(B19="","",SUMIF('الرصيد الثابت'!$D$2:$D$129,B19,'الرصيد الثابت'!$H$2:$H$129)) ->  | D19: =IF(B19="","",SUMIF('الرصيد الثابت'!$D$2:$D$129,B19,'الرصيد الثابت'!$I$2:$I$129)) ->  | E19: =IF(B19="","",SUMIF('الرصيد الثابت'!$D$2:$D$129,B19,'الرصيد الثابت'!$J$2:$J$129)) ->  | G19: 0 | M19: 0 | Q19: 0 | T19: 0 | AA19: ابيض كروشيه 2.5cm | AC19: ابيض كروشيه 5mm | AD19: ابيض كروشيه 5mm
C20: =IF(B20="","",SUMIF('الرصيد الثابت'!$D$2:$D$129,B20,'الرصيد الثابت'!$H$2:$H$129)) ->  | D20: =IF(B20="","",SUMIF('الرصيد الثابت'!$D$2:$D$129,B20,'الرصيد الثابت'!$I$2:$I$129)) ->  | E20: =IF(B20="","",SUMIF('الرصيد الثابت'!$D$2:$D$129,B20,'الرصيد الثابت'!$J$2:$J$129)) ->  | G20: 0 | M20: 0 | Q20: 0 | T20: 0 | AA20: ابيض كروشيه 2cm | AC20: ابيض كروشيه 2.5cm | AD20: ابيض كروشيه 2.5cm
C21: =IF(B21="","",SUMIF('الرصيد الثابت'!$D$2:$D$129,B21,'الرصيد الثابت'!$H$2:$H$129)) ->  | D21: =IF(B21="","",SUMIF('الرصيد الثابت'!$D$2:$D$129,B21,'الرصيد الثابت'!$I$2:$I$129)) ->  | E21: =IF(B21="","",SUMIF('الرصيد الثابت'!$D$2:$D$129,B21,'الرصيد الثابت'!$J$2:$J$129)) ->  | G21: 0 | M21: 0 | Q21: 0 | T21: 0 | AA21: ابيض كروشيه 2m | AC21: ابيض كروشيه 6.5cm | AD21: ابيض كروشيه 6.5cm
C22: =IF(B22="","",SUMIF('الرصيد الثابت'!$D$2:$D$129,B22,'الرصيد الثابت'!$H$2:$H$129)) ->  | D22: =IF(B22="","",SUMIF('الرصيد الثابت'!$D$2:$D$129,B22,'الرصيد الثابت'!$I$2:$I$129)) ->  | E22: =IF(B22="","",SUMIF('الرصيد الثابت'!$D$2:$D$129,B22,'الرصيد الثابت'!$J$2:$J$129)) ->  | G22: 0 | M22: 0 | Q22: 0 | T22: 0 | AA22: ابيض كروشيه 3.2cm | AC22: ابيض كروشيه 1.8cm | AD22: ابيض كروشيه 1.8cm
C23: =IF(B23="","",SUMIF('الرصيد الثابت'!$D$2:$D$129,B23,'الرصيد الثابت'!$H$2:$H$129)) ->  | D23: =IF(B23="","",SUMIF('الرصيد الثابت'!$D$2:$D$129,B23,'الرصيد الثابت'!$I$2:$I$129)) ->  | E23: =IF(B23="","",SUMIF('الرصيد الثابت'!$D$2:$D$129,B23,'الرصيد الثابت'!$J$2:$J$129)) ->  | G23: 0 | M23: 0 | Q23: 0 | T23: 0 | AA23: ابيض كروشيه 3.5cm | AC23: ابيض كروشيه 1,8 | AD23: ابيض كروشيه 1,8
C24: =IF(B24="","",SUMIF('الرصيد الثابت'!$D$2:$D$129,B24,'الرصيد الثابت'!$H$2:$H$129)) ->  | D24: =IF(B24="","",SUMIF('الرصيد الثابت'!$D$2:$D$129,B24,'الرصيد الثابت'!$I$2:$I$129)) ->  | E24: =IF(B24="","",SUMIF('الرصيد الثابت'!$D$2:$D$129,B24,'الرصيد الثابت'!$J$2:$J$129)) ->  | G24: 0 | M24: 0 | Q24: 0 | T24: 0 | AA24: ابيض كروشيه 3cm | AC24: ابيض كروشيه .8m | AD24: ابيض كروشيه .8m
C25: =IF(B25="","",SUMIF('الرصيد الثابت'!$D$2:$D$129,B25,'الرصيد الثابت'!$H$2:$H$129)) ->  | D25: =IF(B25="","",SUMIF('الرصيد الثابت'!$D$2:$D$129,B25,'الرصيد الثابت'!$I$2:$I$129)) ->  | E25: =IF(B25="","",SUMIF('الرصيد الثابت'!$D$2:$D$129,B25,'الرصيد الثابت'!$J$2:$J$129)) ->  | G25: 0 | M25: 0 | Q25: 0 | T25: 0 | AA25: ابيض كروشيه 4.5cm | AC25: ابيض كروشيه 7cm | AD25: ابيض كروشيه 7cm
